Organisation Name (A),Department (B),Service Cat Label (C ),Purpose of Spend (D),Expenditure CIPFA Sub Group (E ),Supplier (F),Supplier Reference (G),Pay Date (H),Transaction Number (I),Net Amount (J),Grant to VCSE? (K),Charity Number (L),Card Transaction (M),Irrecoverable VAT (N/A)
Pendle Borough Council,Property Services,Premises Related Expense,Bldgs : R & M : Day To Day,2001,ATKINSON CLEANING SERVICES LTD,A0000010,10/02/2022,EST0323518,25,N,,N,N
Pendle Borough Council,Parks & Recreation Services,Transport Related Expense,Tprt : Repairs : General,3105,BALMERS GM LIMITED,A0000198,10/02/2022,PCO0323451,104.17,N,,N,N
Pendle Borough Council,Parks & Recreation Services,Transport Related Expense,Tprt : Repairs : General,3105,BALMERS GM LIMITED,A0000198,10/02/2022,PCO0323450,72.86,N,,N,N
Pendle Borough Council,Parks & Recreation Services,Transport Related Expense,Tprt : Repairs : General,3105,BALMERS GM LIMITED,A0000198,10/02/2022,PCO0323450,93.5,N,,N,N
Pendle Borough Council,Parks & Recreation Services,Transport Related Expense,Tprt : Repairs : General,3105,BALMERS GM LIMITED,A0000198,10/02/2022,PCO0323451,34.94,N,,N,N
Pendle Borough Council,Parks & Recreation Services,Transport Related Expense,Tprt : Repairs : General,3105,BALMERS GM LIMITED,A0000198,10/02/2022,PCO0323450,79.96,N,,N,N
Pendle Borough Council,Parks & Recreation Services,Transport Related Expense,Tprt : Repairs : General,3105,BALMERS GM LIMITED,A0000198,10/02/2022,PCO0323451,70.01,N,,N,N
Pendle Borough Council,Parks & Recreation Services,Transport Related Expense,Tprt : Repairs : General,3105,BALMERS GM LIMITED,A0000198,10/02/2022,PCO0323451,122.84,N,,N,N
Pendle Borough Council,Parks & Recreation Services,Transport Related Expense,Tprt : Repairs : General,3105,BALMERS GM LIMITED,A0000198,10/02/2022,PCO0323451,122.84,N,,N,N
Pendle Borough Council,Parks & Recreation Services,Transport Related Expense,Tprt : Repairs : General,3105,BALMERS GM LIMITED,A0000198,10/02/2022,PCO0323451,122.84,N,,N,N
Pendle Borough Council,Parks & Recreation Services,Transport Related Expense,Tprt : Repairs : General,3105,BALMERS GM LIMITED,A0000198,10/02/2022,PCO0323451,122.84,N,,N,N
Pendle Borough Council,Parks & Recreation Services,Supplies and Services,Expenditure : Materials,0002,BARNES JB LIMITED,A0000202,10/02/2022,PCO0323353,47.95,N,,N,N
Pendle Borough Council,Parks & Recreation Services,Transport Related Expense,Tprt : Repairs : General,3105,BARNES JB LIMITED,A0000202,10/02/2022,PCO0323453,46.29,N,,N,N
Pendle Borough Council,Parks & Recreation Services,Transport Related Expense,Tprt : Repairs : General,3105,BARNES JB LIMITED,A0000202,10/02/2022,PCO0323452,61.15,N,,N,N
Pendle Borough Council,Operational Services,Supplies and Services,EFM Materials,4004,BARNES JB LIMITED,A0000202,10/02/2022,OPS0323391,344.51,N,,N,N
Pendle Borough Council,Parks & Recreation Services,Transport Related Expense,Tprt : Repairs : General,3105,BEARING FACTORS,A0000205,10/02/2022,PCO0323455,46.5,N,,N,N
Pendle Borough Council,Parks & Recreation Services,Transport Related Expense,Tprt : Repairs : General,3105,BEARING FACTORS,A0000205,10/02/2022,PCO0323454,399.55,N,,N,N
Pendle Borough Council,Engineering & Special Projects,,Joint Financing Costs,9102,BLACKBURN/DARWEN BOROUGH COUNCIL,A0000381,10/02/2022,HED0323437,810.76,N,,N,N
Pendle Borough Council,Parks & Recreation Services,Transport Related Expense,Diesel Oil,3202,BOC GASES LTD,A0000386,17/02/2022,PCO0323580,119.9,N,,N,N
Pendle Borough Council,Engineering & Special Projects,Premises Related Expense,Grounds : R & M : Day to Day : Routine,2101,CB EXCAVATORS LTD,A0000396,03/02/2022,HED0323338,475,N,,N,N
Pendle Borough Council,Engineering & Special Projects,Premises Related Expense,Grounds : R & M : Day to Day : Routine,2101,CB EXCAVATORS LTD,A0000396,03/02/2022,HED0323339,2456,N,,N,N
Pendle Borough Council,Engineering & Special Projects,Premises Related Expense,Grounds : R & M : Day to Day : Routine,2101,CB EXCAVATORS LTD,A0000396,03/02/2022,HED0323340,12431,N,,N,N
Pendle Borough Council,Engineering & Special Projects,Supplies and Services,Other Expenses,4705,CB EXCAVATORS LTD,A0000396,03/02/2022,HED0323341,1165,N,,N,N
Pendle Borough Council,Engineering & Special Projects,Supplies and Services,Other Expenses,4705,CB EXCAVATORS LTD,A0000396,03/02/2022,HED0323342,2690,N,,N,N
Pendle Borough Council,Parks & Recreation Services,Premises Related Expense,Grounds : R & M : Day to Day : Routine,2101,BARROWFORD SAFE & LOCK & BB LOCKSMITHS,A0000510,17/02/2022,PCO0323578,15.43,N,,N,N
Pendle Borough Council,Parks & Recreation Services,Transport Related Expense,Tprt : Repairs : General,3105,BARROWFORD SAFE & LOCK & BB LOCKSMITHS,A0000510,17/02/2022,PCO0323578,2.92,N,,N,N
Pendle Borough Council,Financial Services,Supplies and Services,Seminars etc All Costs,4601,CIPFA,A0000563,03/02/2022,AAS0323372,221.25,N,,N,N
Pendle Borough Council,Parks & Recreation Services,Transport Related Expense,Hire of Plant,3502,R J CLOUGH & SON LTD,A0000567,17/02/2022,PCO0323591,616,N,,N,N
Pendle Borough Council,Engineering & Special Projects,Transfer Payments,Storage & Homelessness prevention,6104,CAVALIER TAXIS,A0000638,10/02/2022,HED0323406,50,N,,N,N
Pendle Borough Council,Financial Services,Supplies and Services,Consultants Fees,4401,CIVICA UK LTD,A0000660,10/02/2022,AAS0323548,6176,N,,N,N
Pendle Borough Council,Financial Services,Supplies and Services,Computer Charges,4509,CIVICA UK LTD,A0000660,10/02/2022,AAS0323548,7400,N,,N,N
Pendle Borough Council,Property Services,Premises Related Expense,Bldgs : R & M : Day To Day,2001,J DRIVER LTD,A0000884,03/02/2022,EST0323317,353,N,,N,N
Pendle Borough Council,Property Services,Premises Related Expense,Bldgs : R & M : Day To Day,2001,J DRIVER LTD,A0000884,03/02/2022,EST0323317,168,N,,N,N
Pendle Borough Council,Property Services,Premises Related Expense,Bldgs : R & M : Day To Day,2001,J DRIVER LTD,A0000884,03/02/2022,EST0323318,210,N,,N,N
Pendle Borough Council,Property Services,Premises Related Expense,Bldgs : R & M : Day To Day,2001,J DRIVER LTD,A0000884,03/02/2022,EST0323317,56,N,,N,N
Pendle Borough Council,Property Services,Premises Related Expense,Bldgs : R & M : Day To Day,2001,J DRIVER LTD,A0000884,03/02/2022,EST0323317,56,N,,N,N
Pendle Borough Council,Property Services,Capital Costs,Capital : Payments,CD14,J DRIVER LTD,A0000884,03/02/2022,EST0323317,301.5,N,,N,N
Pendle Borough Council,Property Services,Capital Costs,Capital : Payments,CD14,J DRIVER LTD,A0000884,24/02/2022,EST0323835,4370,N,,N,N
Pendle Borough Council,Property Services,Capital Costs,Capital : Payments,CD14,J DRIVER LTD,A0000884,10/02/2022,EST0323517,10000,N,,N,N
Pendle Borough Council,Parks & Recreation Services,Supplies and Services,Protective Clothing,4201,ENGINEERING & FOUNDRY SUPPLIES,A0001002,10/02/2022,PCO0323355,5.2,N,,N,N
Pendle Borough Council,Parks & Recreation Services,Supplies and Services,Protective Clothing,4201,ENGINEERING & FOUNDRY SUPPLIES,A0001002,10/02/2022,PCO0323357,10.4,N,,N,N
Pendle Borough Council,Operational Services,Supplies and Services,Protective Clothing,4201,ENGINEERING & FOUNDRY SUPPLIES,A0001002,24/02/2022,OPS0323783,60.76,N,,N,N
Pendle Borough Council,Operational Services,Supplies and Services,Protective Clothing,4201,ENGINEERING & FOUNDRY SUPPLIES,A0001002,24/02/2022,OPS0323784,444.5,N,,N,N
Pendle Borough Council,Operational Services,Supplies and Services,Other Expenses,4705,ENGINEERING & FOUNDRY SUPPLIES,A0001002,17/02/2022,OPS0323569,6.45,N,,N,N
Pendle Borough Council,Operational Services,Supplies and Services,Other Expenses,4705,ENGINEERING & FOUNDRY SUPPLIES,A0001002,17/02/2022,OPS0323569,24.75,N,,N,N
Pendle Borough Council,Operational Services,Supplies and Services,Other Expenses,4705,ENGINEERING & FOUNDRY SUPPLIES,A0001002,03/02/2022,OPS0323233,331.95,N,,N,N
Pendle Borough Council,Operational Services,,Stock : Purchases,PJ01,ENGINEERING & FOUNDRY SUPPLIES,A0001002,10/02/2022,OPS4006527,-41.25,N,,N,N
Pendle Borough Council,Operational Services,,Stock : Purchases,PJ01,ENGINEERING & FOUNDRY SUPPLIES,A0001002,03/02/2022,OPS0323287,47.3,N,,N,N
Pendle Borough Council,Operational Services,,Stock : Purchases,PJ01,ENGINEERING & FOUNDRY SUPPLIES,A0001002,10/02/2022,OPS0323390,106.71,N,,N,N
Pendle Borough Council,Operational Services,,Stock : Purchases,PJ01,ENGINEERING & FOUNDRY SUPPLIES,A0001002,17/02/2022,OPS0323581,150,N,,N,N
Pendle Borough Council,Operational Services,,Stock : Purchases,PJ01,ENGINEERING & FOUNDRY SUPPLIES,A0001002,17/02/2022,OPS0323581,252,N,,N,N
Pendle Borough Council,Operational Services,Transport Related Expense,Tprt : Repairs : General,3105,FREIGHT TRANSPORT ASSOCIATION,A0001124,10/02/2022,OPS0323388,41.25,N,,N,N
Pendle Borough Council,Operational Services,Transport Related Expense,Tprt : Repairs : General,3105,FREIGHT TRANSPORT ASSOCIATION,A0001124,10/02/2022,OPS0323403,41.25,N,,N,N
Pendle Borough Council,Parks & Recreation Services,Transport Related Expense,Tprt : Repairs : General,3105,GIBSONS GARDEN MACHINERY LTD,A0001201,10/02/2022,PCO0323456,1286.45,N,,N,N
Pendle Borough Council,Parks & Recreation Services,Transport Related Expense,Tprt : Repairs : General,3105,GIBSONS GARDEN MACHINERY LTD,A0001201,17/02/2022,PCO0323588,704,N,,N,N
Pendle Borough Council,Parks & Recreation Services,Transport Related Expense,Tprt : Repairs : General,3105,GIBSONS GARDEN MACHINERY LTD,A0001201,17/02/2022,PCO0323586,704,N,,N,N
Pendle Borough Council,Operational Services,Supplies and Services,Telephones : Direct,4502,FGH GUARDHALL SECURITY LIMITED,A0001235,24/02/2022,OPS0323788,1500,N,,N,N
Pendle Borough Council,Operational Services,Supplies and Services,EFM Materials,4004,JEWSON LIMITED,A0001323,03/02/2022,OPS0323286,23.96,N,,N,N
Pendle Borough Council,Operational Services,Supplies and Services,EFM Materials,4004,JEWSON LIMITED,A0001323,24/02/2022,OPS0323789,35.94,N,,N,N
Pendle Borough Council,Engineering & Special Projects,Supplies and Services,Other Expenses,4705,KILLGERM CHEMICALS LTD,A0001624,03/02/2022,HED0323214,295.64,N,,N,N
Pendle Borough Council,Parks & Recreation Services,Premises Related Expense,Grounds : R & M : Day to Day : Routine,2101,LANLEE SUPPLIES LIMITED,A0001672,10/02/2022,PCO0323363,47.64,N,,N,N
Pendle Borough Council,Parks & Recreation Services,Premises Related Expense,Grounds : R & M : Day to Day : Routine,2101,LANLEE SUPPLIES LIMITED,A0001672,10/02/2022,PCO0323361,17.91,N,,N,N
Pendle Borough Council,Parks & Recreation Services,Premises Related Expense,Grounds : R & M : Day to Day : Routine,2101,LANLEE SUPPLIES LIMITED,A0001672,10/02/2022,PCO0323362,23.96,N,,N,N
Pendle Borough Council,Engineering & Special Projects,Capital Costs,Ren Grant : 1996 Act,CH22,LANCASHIRE COUNTY COUNCIL,A0001690,24/02/2022,HED0323768,2903.88,N,,N,N
Pendle Borough Council,Engineering & Special Projects,Capital Costs,Ren Grant : 1996 Act,CH22,LANCASHIRE COUNTY COUNCIL,A0001690,10/02/2022,HED0323478,3237.02,N,,N,N
Pendle Borough Council,Property Services,Premises Related Expense,Bldgs : R & M : Day To Day,2001,MONK OF COLNE LTD,A0001828,03/02/2022,EST0323330,2200,N,,N,N
Pendle Borough Council,Operational Services,Premises Related Expense,Grounds : R & M : Day to Day : Routine,2101,JOHN MACADAM & SON (RESCUE) LTD,A0001846,03/02/2022,OPS0323216,120,N,,N,N
Pendle Borough Council,Operational Services,Premises Related Expense,Grounds : R & M : Day to Day : Routine,2101,JOHN MACADAM & SON (RESCUE) LTD,A0001846,10/02/2022,OPS0323396,120,N,,N,N
Pendle Borough Council,Operational Services,Premises Related Expense,Grounds : R & M : Day to Day : Routine,2101,JOHN MACADAM & SON (RESCUE) LTD,A0001846,10/02/2022,OPS0323397,120,N,,N,N
Pendle Borough Council,Property Services,Premises Related Expense,Water & Sewerage,2501,WATER PLUS LIMITED,A0001986,03/02/2022,EST0323316,167.25,N,,N,N
Pendle Borough Council,Property Services,Premises Related Expense,Water & Sewerage,2501,WATER PLUS LIMITED,A0001986,24/02/2022,EST0323836,164.22,N,,N,N
Pendle Borough Council,Property Services,Premises Related Expense,Water & Sewerage,2501,WATER PLUS LIMITED,A0001986,17/02/2022,EST0323664,350.28,N,,N,N
Pendle Borough Council,Property Services,Premises Related Expense,Water & Sewerage,2501,WATER PLUS LIMITED,A0001986,10/02/2022,EST0323519,2026.77,N,,N,N
Pendle Borough Council,Operational Services,Premises Related Expense,Bldgs : R & M : Day To Day,2001,OPTION HYGIENE LIMITED,A0002063,03/02/2022,OPS0323231,67.2,N,,N,N
Pendle Borough Council,Parks & Recreation Services,Premises Related Expense,Grounds : R & M : Day to Day : Routine,2101,OPTION HYGIENE LIMITED,A0002063,17/02/2022,PCO0323589,40.42,N,,N,N
Pendle Borough Council,Parks & Recreation Services,Transport Related Expense,Tprt : Repairs : General,3105,OPTION HYGIENE LIMITED,A0002063,10/02/2022,PCO0323459,90.8,N,,N,N
Pendle Borough Council,Operational Services,,Stock : Purchases,PJ01,OPTION HYGIENE LIMITED,A0002063,03/02/2022,OPS0323231,107.4,N,,N,N
Pendle Borough Council,Engineering & Special Projects,Capital Costs,Capital : Payments,CD14,OLD LAUND BOOTH PARISH COUNCIL,A0002067,24/02/2022,HED0323761,214,N,,N,N
Pendle Borough Council,Engineering & Special Projects,Capital Costs,Capital : Payments,CD14,OLD LAUND BOOTH PARISH COUNCIL,A0002067,24/02/2022,HED0323765,626,N,,N,N
Pendle Borough Council,Operational Services,Premises Related Expense,Bldgs : R & M : Day To Day,2001,POWER PIPES (PENDLE) LIMITED,A0002089,24/02/2022,OPS0323792,44.39,N,,N,N
Pendle Borough Council,Engineering & Special Projects,Supplies and Services,Postages,4501,ROYAL MAIL GROUP LIMITED,A0002281,17/02/2022,HED0323663,1.91,N,,N,N
Pendle Borough Council,Engineering & Special Projects,Supplies and Services,Postages,4501,ROYAL MAIL GROUP LIMITED,A0002281,10/02/2022,HED0323474,4.21,N,,N,N
Pendle Borough Council,Engineering & Special Projects,Supplies and Services,Postages,4501,ROYAL MAIL GROUP LIMITED,A0002281,10/02/2022,HED0323532,4.84,N,,N,N
Pendle Borough Council,Engineering & Special Projects,Supplies and Services,Postages,4501,ROYAL MAIL GROUP LIMITED,A0002281,03/02/2022,HED0323281,14.21,N,,N,N
Pendle Borough Council,Engineering & Special Projects,Supplies and Services,Postages,4501,ROYAL MAIL GROUP LIMITED,A0002281,17/02/2022,HED0323663,130.52,N,,N,N
Pendle Borough Council,Engineering & Special Projects,Supplies and Services,Postages,4501,ROYAL MAIL GROUP LIMITED,A0002281,10/02/2022,HED0323474,319.43,N,,N,N
Pendle Borough Council,Engineering & Special Projects,Supplies and Services,Postages,4501,ROYAL MAIL GROUP LIMITED,A0002281,03/02/2022,HED0323281,404.83,N,,N,N
Pendle Borough Council,Engineering & Special Projects,Supplies and Services,Postages,4501,ROYAL MAIL GROUP LIMITED,A0002281,10/02/2022,HED0323474,13.37,N,,N,N
Pendle Borough Council,Engineering & Special Projects,Supplies and Services,Postages,4501,ROYAL MAIL GROUP LIMITED,A0002281,10/02/2022,HED0323474,16.8,N,,N,N
Pendle Borough Council,Engineering & Special Projects,Supplies and Services,Postages,4501,ROYAL MAIL GROUP LIMITED,A0002281,17/02/2022,HED0323663,25.92,N,,N,N
Pendle Borough Council,Engineering & Special Projects,Supplies and Services,Postages,4501,ROYAL MAIL GROUP LIMITED,A0002281,17/02/2022,HED0323663,57.52,N,,N,N
Pendle Borough Council,Engineering & Special Projects,Supplies and Services,Postages,4501,ROYAL MAIL GROUP LIMITED,A0002281,10/02/2022,HED0323474,107.85,N,,N,N
Pendle Borough Council,Engineering & Special Projects,Supplies and Services,Postages,4501,ROYAL MAIL GROUP LIMITED,A0002281,10/02/2022,HED0323474,0.8,N,,N,N
Pendle Borough Council,Engineering & Special Projects,Supplies and Services,Postages,4501,ROYAL MAIL GROUP LIMITED,A0002281,17/02/2022,HED0323663,3.33,N,,N,N
Pendle Borough Council,Engineering & Special Projects,Supplies and Services,Postages,4501,ROYAL MAIL GROUP LIMITED,A0002281,10/02/2022,HED0323474,15.48,N,,N,N
Pendle Borough Council,Engineering & Special Projects,Supplies and Services,Postages,4501,ROYAL MAIL GROUP LIMITED,A0002281,10/02/2022,HED0323474,0.96,N,,N,N
Pendle Borough Council,Engineering & Special Projects,Supplies and Services,Postages,4501,ROYAL MAIL GROUP LIMITED,A0002281,17/02/2022,HED0323663,1.92,N,,N,N
Pendle Borough Council,Engineering & Special Projects,Supplies and Services,Postages,4501,ROYAL MAIL GROUP LIMITED,A0002281,10/02/2022,HED0323474,-14.04,N,,N,N
Pendle Borough Council,Engineering & Special Projects,Supplies and Services,Postages,4501,ROYAL MAIL GROUP LIMITED,A0002281,17/02/2022,HED0323663,16.42,N,,N,N
Pendle Borough Council,Engineering & Special Projects,Supplies and Services,Postages,4501,ROYAL MAIL GROUP LIMITED,A0002281,17/02/2022,HED0323663,21.28,N,,N,N
Pendle Borough Council,Engineering & Special Projects,Supplies and Services,Postages,4501,ROYAL MAIL GROUP LIMITED,A0002281,10/02/2022,HED0323474,56.73,N,,N,N
Pendle Borough Council,Engineering & Special Projects,Supplies and Services,Postages,4501,ROYAL MAIL GROUP LIMITED,A0002281,10/02/2022,HED0323474,7.99,N,,N,N
Pendle Borough Council,Engineering & Special Projects,Supplies and Services,Postages,4501,ROYAL MAIL GROUP LIMITED,A0002281,17/02/2022,HED0323663,33.08,N,,N,N
Pendle Borough Council,Engineering & Special Projects,Supplies and Services,Postages,4501,ROYAL MAIL GROUP LIMITED,A0002281,10/02/2022,HED0323474,154.61,N,,N,N
Pendle Borough Council,Engineering & Special Projects,Supplies and Services,Postages,4501,ROYAL MAIL GROUP LIMITED,A0002281,10/02/2022,HED0323474,157.22,N,,N,N
Pendle Borough Council,Engineering & Special Projects,Supplies and Services,Postages,4501,ROYAL MAIL GROUP LIMITED,A0002281,17/02/2022,HED0323663,335.58,N,,N,N
Pendle Borough Council,Engineering & Special Projects,Supplies and Services,Postages,4501,ROYAL MAIL GROUP LIMITED,A0002281,17/02/2022,HED0323663,22.91,N,,N,N
Pendle Borough Council,Engineering & Special Projects,Supplies and Services,Postages,4501,ROYAL MAIL GROUP LIMITED,A0002281,10/02/2022,HED0323474,30.22,N,,N,N
Pendle Borough Council,Engineering & Special Projects,Supplies and Services,Postages,4501,ROYAL MAIL GROUP LIMITED,A0002281,17/02/2022,HED0323663,11.88,N,,N,N
Pendle Borough Council,Engineering & Special Projects,Supplies and Services,Postages,4501,ROYAL MAIL GROUP LIMITED,A0002281,10/02/2022,HED0323474,78.84,N,,N,N
Pendle Borough Council,Engineering & Special Projects,Supplies and Services,Postages,4501,ROYAL MAIL GROUP LIMITED,A0002281,17/02/2022,HED0323663,325.43,N,,N,N
Pendle Borough Council,Engineering & Special Projects,Supplies and Services,Postages,4501,ROYAL MAIL GROUP LIMITED,A0002281,10/02/2022,HED0323474,438.7,N,,N,N
Pendle Borough Council,Engineering & Special Projects,Supplies and Services,Postages,4501,ROYAL MAIL GROUP LIMITED,A0002281,10/02/2022,HED4006529,-88.55,N,,N,N
Pendle Borough Council,Engineering & Special Projects,Supplies and Services,Postages,4501,ROYAL MAIL GROUP LIMITED,A0002281,17/02/2022,HED0323663,59.86,N,,N,N
Pendle Borough Council,Operational Services,Supplies and Services,Postages,4501,ROYAL MAIL GROUP LIMITED,A0002281,03/02/2022,OPS0323285,92.28,N,,N,N
Pendle Borough Council,Engineering & Special Projects,Supplies and Services,Postages,4501,ROYAL MAIL GROUP LIMITED,A0002281,10/02/2022,HED0323474,114.34,N,,N,N
Pendle Borough Council,Operational Services,Agency Staff,Emp : Agency Wages,1004,STANLEY BROTHERS (TIPPERS) LTD,A0002422,24/02/2022,OPS0323787,138,N,,N,N
Pendle Borough Council,Operational Services,Transport Related Expense,Tprt : Annual Hire Charge,3601,STANLEY BROTHERS (TIPPERS) LTD,A0002422,24/02/2022,OPS0323786,2200,N,,N,N
Pendle Borough Council,Engineering & Special Projects,Supplies and Services,EFM : Other Equipment,4003,STANLEY HOUSE VETERINARY GROUP,A0002423,10/02/2022,HED0323433,290,N,,N,N
Pendle Borough Council,Parks & Recreation Services,Capital Costs,Capital : Payments,CD14,STEVENSON MEMORIALS,A0002426,17/02/2022,PCO0323595,1200,N,,N,N
Pendle Borough Council,Parks & Recreation Services,Premises Related Expense,Grounds : R & M : Day to Day : Routine,2101,ROBERTSON MEMORIALS,A0002590,24/02/2022,PCO0323757,173.35,N,,N,N
Pendle Borough Council,Parks & Recreation Services,Premises Related Expense,Grounds : R & M : Day to Day : Routine,2101,ROBERTSON MEMORIALS,A0002590,17/02/2022,PCO0323593,310.85,N,,N,N
Pendle Borough Council,Parks & Recreation Services,Premises Related Expense,Grounds : R & M : Day to Day : Routine,2101,ROBERTSON MEMORIALS,A0002590,24/02/2022,PCO0323758,268.35,N,,N,N
Pendle Borough Council,Property Services,Premises Related Expense,Bldgs : R & M : Day To Day,2001,T & F STEEL DESIGNS LTD,A0002627,03/02/2022,EST0323322,35,N,,N,N
Pendle Borough Council,Property Services,Premises Related Expense,Bldgs : R & M : Day To Day,2001,T & F STEEL DESIGNS LTD,A0002627,03/02/2022,EST0323322,130,N,,N,N
Pendle Borough Council,Property Services,Premises Related Expense,Bldgs : R & M : Day To Day,2001,T & F STEEL DESIGNS LTD,A0002627,24/02/2022,EST0323831,180,N,,N,N
Pendle Borough Council,Property Services,Premises Related Expense,Bldgs : R & M : Day To Day,2001,T & F STEEL DESIGNS LTD,A0002627,24/02/2022,EST0323831,205,N,,N,N
Pendle Borough Council,Engineering & Special Projects,Premises Related Expense,Grounds : R & M : Day to Day : Routine,2101,T & F STEEL DESIGNS LTD,A0002627,17/02/2022,HED0323680,40,N,,N,N
Pendle Borough Council,Engineering & Special Projects,Premises Related Expense,Grounds : R & M : Day to Day : Routine,2101,T & F STEEL DESIGNS LTD,A0002627,17/02/2022,HED0323680,135,N,,N,N
Pendle Borough Council,Engineering & Special Projects,Premises Related Expense,Grounds : R & M : Day to Day : Routine,2101,T & F STEEL DESIGNS LTD,A0002627,17/02/2022,HED0323679,90,N,,N,N
Pendle Borough Council,Engineering & Special Projects,Premises Related Expense,Grounds : R & M : Day to Day : Routine,2101,T & F STEEL DESIGNS LTD,A0002627,17/02/2022,HED0323679,190,N,,N,N
Pendle Borough Council,Operational Services,,Stock : Purchases,PJ01,THE HELPING HAND CO LTD,A0002655,10/02/2022,OPS0323389,68.47,N,,N,N
Pendle Borough Council,Engineering & Special Projects,Capital Costs,Ren Grant : 1996 Act,CH22,CLOSOMAT LIMITED,A0002685,17/02/2022,HED0323652,4463,N,,N,N
Pendle Borough Council,Engineering & Special Projects,Premises Related Expense,Grounds : R & M : Day to Day : Routine,2101,YORKSHIRE WATER,A0002808,24/02/2022,HED0323846,63.08,N,,N,N
Pendle Borough Council,Operational Services,Premises Related Expense,Grounds : R & M : Day to Day : Routine,2101,ENVIRONMENT AGENCY,A0003560,10/02/2022,OPS0323402,290,N,,N,N
Pendle Borough Council,Engineering & Special Projects,Supplies and Services,Mobile Phones,4508,EE LIMITED,A0004680,24/02/2022,HED4006539,-50,N,,N,N
Pendle Borough Council,Engineering & Special Projects,Indirect Employee Expenses,Staff Refreshments,1261,PHILIP SANDERSON,A0006611,10/02/2022,HED0323481,16.52,N,,N,N
Pendle Borough Council,Engineering & Special Projects,Supplies and Services,Hospitality,4611,PHILIP SANDERSON,A0006611,10/02/2022,HED0323481,21.36,N,,N,N
Pendle Borough Council,Engineering & Special Projects,Indirect Employee Expenses,Emp : Practising Certificates,1201,CILEX  REGULATION LIMITED,A0007913,10/02/2022,HED0323434,367,N,,N,N
Pendle Borough Council,Engineering & Special Projects,Supplies and Services,Consultants Fees,4401,PENDLE LEISURE LIMITED,A0012961,24/02/2022,HED0323850,6731.76,N,XR43029,N,N
Pendle Borough Council,Financial Services,Supplies and Services,Other Expenses,4705,PENDLE LEISURE LIMITED,A0012961,03/02/2022,AAS0323370,187.5,N,XR43029,N,N
Pendle Borough Council,Engineering & Special Projects,Supplies and Services,Children`s holiday activities,4716,PENDLE LEISURE LIMITED,A0012961,03/02/2022,HED0323336,1600,N,XR43029,N,N
Pendle Borough Council,Engineering & Special Projects,Supplies and Services,Children`s holiday activities,4716,PENDLE LEISURE LIMITED,A0012961,03/02/2022,HED0323337,10034,N,XR43029,N,N
Pendle Borough Council,Operational Services,Supplies and Services,Sub-Contractors,4007,ORCHARD RECYCLING SERVICE,A0015803,17/02/2022,OPS0323570,2340.8,N,,N,N
Pendle Borough Council,Operational Services,Supplies and Services,Sub-Contractors,4007,ORCHARD RECYCLING SERVICE,A0015803,24/02/2022,OPS0323780,2348.5,N,,N,N
Pendle Borough Council,Operational Services,Supplies and Services,Sub-Contractors,4007,ORCHARD RECYCLING SERVICE,A0015803,10/02/2022,OPS0323404,2410.1,N,,N,N
Pendle Borough Council,Operational Services,Supplies and Services,Sub-Contractors,4007,ORCHARD RECYCLING SERVICE,A0015803,03/02/2022,OPS0323227,2417.8,N,,N,N
Pendle Borough Council,Operational Services,Supplies and Services,Miscellaneous : Other,4707,ORCHARD RECYCLING SERVICE,A0015803,17/02/2022,OPS0323570,198.25,N,,N,N
Pendle Borough Council,Operational Services,Supplies and Services,Miscellaneous : Other,4707,ORCHARD RECYCLING SERVICE,A0015803,24/02/2022,OPS0323780,213.75,N,,N,N
Pendle Borough Council,Operational Services,Supplies and Services,Miscellaneous : Other,4707,ORCHARD RECYCLING SERVICE,A0015803,10/02/2022,OPS0323404,216.75,N,,N,N
Pendle Borough Council,Operational Services,Supplies and Services,Miscellaneous : Other,4707,ORCHARD RECYCLING SERVICE,A0015803,03/02/2022,OPS0323227,218.5,N,,N,N
Pendle Borough Council,Operational Services,Agency Costs,Fast Action Response,5009,ORCHARD RECYCLING SERVICE,A0015803,17/02/2022,OPS0323570,198.25,N,,N,N
Pendle Borough Council,Operational Services,Agency Costs,Fast Action Response,5009,ORCHARD RECYCLING SERVICE,A0015803,24/02/2022,OPS0323780,213.75,N,,N,N
Pendle Borough Council,Operational Services,Agency Costs,Fast Action Response,5009,ORCHARD RECYCLING SERVICE,A0015803,10/02/2022,OPS0323404,216.75,N,,N,N
Pendle Borough Council,Operational Services,Agency Costs,Fast Action Response,5009,ORCHARD RECYCLING SERVICE,A0015803,03/02/2022,OPS0323227,218.5,N,,N,N
Pendle Borough Council,Engineering & Special Projects,Capital Costs,Ren Grant : 1996 Act,CH22,STANNAH LIFT SERVICES LTD,A0021089,17/02/2022,HED0323653,3200,N,,N,N
Pendle Borough Council,Parks & Recreation Services,Premises Related Expense,Grounds : R & M : Day to Day : Routine,2101,WORMS EYE LIMITED,A0021240,24/02/2022,PCO0323759,2321,N,,N,N
Pendle Borough Council,Engineering & Special Projects,Capital Costs,Capital : Payments,CD14,WORMS EYE LIMITED,A0021240,10/02/2022,HED0323531,1847,N,,N,N
Pendle Borough Council,Operational Services,Supplies and Services,Sub-Contractors,4007,ASPEN VALLEY KENNELS & CATTERY,A0022106,17/02/2022,OPS0323584,825,N,,N,N
Pendle Borough Council,Operational Services,Supplies and Services,Other Expenses,4705,ASPEN VALLEY KENNELS & CATTERY,A0022106,17/02/2022,OPS0323584,930.6,N,,N,N
Pendle Borough Council,Engineering & Special Projects,Capital Costs,Capital : Payments,CD14,DAVID GOODGER & ASSOCIATES LT,A0024824,10/02/2022,HED0323526,1000,N,,N,N
Pendle Borough Council,Engineering & Special Projects,Supplies and Services,Other Expenses,4705,AMBEROL LTD,A0024983,03/02/2022,HED0323344,865.76,N,,N,N
Pendle Borough Council,Engineering & Special Projects,Agency Staff,Emp : Salaries & Wages,1020,GRADKO INTERNATIONAL LTD,A0025806,10/02/2022,HED0323426,191,N,,N,N
Pendle Borough Council,Operational Services,Premises Related Expense,Bldgs : R & M : Day To Day,2001,BRITISH TELECOMMUNICATIONS PLC,A0040001,10/02/2022,OPS0323558,40,N,,N,N
Pendle Borough Council,Operational Services,Premises Related Expense,Bldgs : R & M : Day To Day,2001,BRITISH TELECOMMUNICATIONS PLC,A0040001,10/02/2022,OPS0323558,138.9,N,,N,N
Pendle Borough Council,Engineering & Special Projects,Premises Related Expense,Bldgs : R & M : Day To Day,2001,LITE,A0040032,03/02/2022,HED0323345,500,N,,N,N
Pendle Borough Council,Engineering & Special Projects,Premises Related Expense,Grounds : R & M : Day to Day : Routine,2101,LITE,A0040032,03/02/2022,HED0323346,1165,N,,N,N
Pendle Borough Council,Engineering & Special Projects,Premises Related Expense,Grounds : R & M : Day to Day : Routine,2101,LITE,A0040032,03/02/2022,HED0323345,695,N,,N,N
Pendle Borough Council,Engineering & Special Projects,Supplies and Services,Seminars etc All Costs,4601,SOLACE GROUP LIMITED,A0040401,24/02/2022,HED0323764,350,N,,N,N
Pendle Borough Council,Engineering & Special Projects,Supplies and Services,Printing & Stationery,4301,CIVICA ELECTION SERVICES,A0041321,17/02/2022,HED0323644,224.75,N,,N,N
Pendle Borough Council,Engineering & Special Projects,Supplies and Services,Printing & Stationery,4301,CIVICA ELECTION SERVICES,A0041321,03/02/2022,HED0323280,400.5,N,,N,N
Pendle Borough Council,Engineering & Special Projects,Supplies and Services,Postages,4501,CIVICA ELECTION SERVICES,A0041321,03/02/2022,HED0323280,403.7,N,,N,N
Pendle Borough Council,Engineering & Special Projects,Supplies and Services,Postages,4501,CIVICA ELECTION SERVICES,A0041321,17/02/2022,HED0323644,1145.24,N,,N,N
Pendle Borough Council,Engineering & Special Projects,Supplies and Services,Other Expenses,4705,METCRAFT LIGHTING LTD,A0042358,24/02/2022,HED0323847,568,N,,N,N
Pendle Borough Council,Engineering & Special Projects,Supplies and Services,Subscriptions & Donations,4706,COUNCIL FOR VOLUNTARY SERVICE,A0042503,03/02/2022,HED0323284,5000,N,1062446,N,N
Pendle Borough Council,Engineering & Special Projects,Supplies and Services,Other Expenses,4705,D J LINGARD & ASSOCIATES LTD,A0042727,24/02/2022,HED0323844,480,N,,N,N
Pendle Borough Council,Operational Services,,Stock : Purchases,pj01,PMC POLYTHENE LIMITED,A0043215,17/02/2022,OPS0323573,833,N,,N,N
Pendle Borough Council,Property Services,Premises Related Expense,Bldgs : R & M : Day To Day,2001,ASKEW REFRIGERATION SERVICES LTD,A0043524,03/02/2022,EST0323334,120,N,,N,N
Pendle Borough Council,Parks & Recreation Services,Transport Related Expense,Tprt : Repairs : General,3105,M J RUSHTON,A0043864,03/02/2022,PCO0323218,80,N,,N,N
Pendle Borough Council,Operational Services,Indirect Employee Expenses,Training,1211,TERBERG MATEC UK,A0043970,24/02/2022,OPS0323791,1200,N,,N,N
Pendle Borough Council,Operational Services,Premises Related Expense,Grounds : R & M : Day to Day : Routine,2101,S M SHEPHERD BUILDING CONTRACTORS,A0044037,24/02/2022,OPS0323790,30,N,,N,N
Pendle Borough Council,Operational Services,Premises Related Expense,Grounds : R & M : Day to Day : Routine,2101,S M SHEPHERD BUILDING CONTRACTORS,A0044037,24/02/2022,OPS0323790,30,N,,N,N
Pendle Borough Council,Operational Services,Premises Related Expense,Grounds : R & M : Day to Day : Routine,2101,S M SHEPHERD BUILDING CONTRACTORS,A0044037,24/02/2022,OPS0323790,20,N,,N,N
Pendle Borough Council,Operational Services,Premises Related Expense,Grounds : R & M : Day to Day : Routine,2101,S M SHEPHERD BUILDING CONTRACTORS,A0044037,24/02/2022,OPS0323790,20,N,,N,N
Pendle Borough Council,Operational Services,Supplies and Services,Sub-Contractors,4007,S M SHEPHERD BUILDING CONTRACTORS,A0044037,03/02/2022,OPS0323215,90,N,,N,N
Pendle Borough Council,Operational Services,Supplies and Services,Sub-Contractors,4007,S M SHEPHERD BUILDING CONTRACTORS,A0044037,24/02/2022,OPS0323790,120,N,,N,N
Pendle Borough Council,Operational Services,Supplies and Services,Sub-Contractors,4007,S M SHEPHERD BUILDING CONTRACTORS,A0044037,24/02/2022,OPS0323790,120,N,,N,N
Pendle Borough Council,Operational Services,Supplies and Services,Sub-Contractors,4007,S M SHEPHERD BUILDING CONTRACTORS,A0044037,10/02/2022,OPS0323385,170,N,,N,N
Pendle Borough Council,Operational Services,Supplies and Services,Sub-Contractors,4007,S M SHEPHERD BUILDING CONTRACTORS,A0044037,10/02/2022,OPS0323385,170,N,,N,N
Pendle Borough Council,Parks & Recreation Services,Supplies and Services,Expenditure : Materials,0002,BOWCOM,A0045454,24/02/2022,PCO0323753,1430,N,,N,N
Pendle Borough Council,Engineering & Special Projects,Capital Costs,Capital : Environmental Surveys etc,CD08,BOWLAND ECOLOGY LIMITED,A0047425,10/02/2022,HED0323527,340,N,,N,N
Pendle Borough Council,Property Services,Supplies and Services,Publicity & advertisement,4704,LOOP PUBLISHING LTD,A0047429,24/02/2022,EST0323830,230,N,,N,N
Pendle Borough Council,Engineering & Special Projects,Supplies and Services,Publicity & advertisement,4704,LOOP PUBLISHING LTD,A0047429,24/02/2022,HED0323800,500,N,,N,N
Pendle Borough Council,Engineering & Special Projects,Supplies and Services,Other Expenses,4705,THE ENVIRONMENT PARTNERSHIP (TEP) LIMITED,A0049717,17/02/2022,HED0323662,1320,N,,N,N
Pendle Borough Council,Planning & Building Control,Supplies and Services,EFM : Other Equipment,4003,VIP SYSTEM LIMITED,A0050529,10/02/2022,PBC0323398,527.84,N,,N,N
Pendle Borough Council,Planning & Building Control,Supplies and Services,EFM : Other Equipment,4003,VIP SYSTEM LIMITED,A0050529,10/02/2022,PBC0323398,1178.97,N,,N,N
Pendle Borough Council,Financial Services,Indirect Employee Expenses,Redundancy Payments,1233,LIBERATA UK LTD,A0051618,03/02/2022,AAS0323381,5459,N,,N,N
Pendle Borough Council,Financial Services,Premises Related Expense,Rents,2301,LIBERATA UK LTD,A0051618,10/02/2022,AAS0323545,490.1,N,,N,N
Pendle Borough Council,Financial Services,Supplies and Services,Other Expenses,4705,LIBERATA UK LTD,A0051618,03/02/2022,AAS0323380,1999,N,,N,N
Pendle Borough Council,Financial Services,Agency Costs,Liberata,5301,LIBERATA UK LTD,A0051618,03/02/2022,AAS0323379,12573,N,,N,N
Pendle Borough Council,Financial Services,Agency Costs,Liberata,5301,LIBERATA UK LTD,A0051618,17/02/2022,AAS0323684,12000,N,,N,N
Pendle Borough Council,Financial Services,Agency Costs,Liberata,5301,LIBERATA UK LTD,A0051618,10/02/2022,AAS0323546,3762.66,N,,N,N
Pendle Borough Council,Financial Services,Agency Costs,Liberata U/C,5303,LIBERATA UK LTD,A0051618,24/02/2022,AAS4006542,-4750,N,,N,N
Pendle Borough Council,Financial Services,Agency Costs,Liberata U/C,5303,LIBERATA UK LTD,A0051618,24/02/2022,AAS0323867,6191.67,N,,N,N
Pendle Borough Council,Financial Services,Agency Costs,Liberata U/C,5303,LIBERATA UK LTD,A0051618,24/02/2022,AAS4006542,9770.5,N,,N,N
Pendle Borough Council,Financial Services,Agency Costs,Liberata U/C,5303,LIBERATA UK LTD,A0051618,24/02/2022,AAS0323867,32782.24,N,,N,N
Pendle Borough Council,Financial Services,Agency Costs,Liberata U/C,5303,LIBERATA UK LTD,A0051618,24/02/2022,AAS4006542,8659.9,N,,N,N
Pendle Borough Council,Financial Services,Agency Costs,Liberata U/C,5303,LIBERATA UK LTD,A0051618,24/02/2022,AAS0323867,29055.73,N,,N,N
Pendle Borough Council,Financial Services,Agency Costs,Liberata U/C,5303,LIBERATA UK LTD,A0051618,24/02/2022,AAS4006542,24885.3,N,,N,N
Pendle Borough Council,Financial Services,Agency Costs,Liberata U/C,5303,LIBERATA UK LTD,A0051618,24/02/2022,AAS0323867,83495.18,N,,N,N
Pendle Borough Council,Financial Services,Agency Costs,Liberata U/C,5303,LIBERATA UK LTD,A0051618,24/02/2022,AAS4006542,-9304.9,N,,N,N
Pendle Borough Council,Financial Services,Agency Costs,Liberata U/C,5303,LIBERATA UK LTD,A0051618,24/02/2022,AAS0323867,54941.98,N,,N,N
Pendle Borough Council,Financial Services,Agency Costs,Liberata U/C,5303,LIBERATA UK LTD,A0051618,24/02/2022,AAS4006542,-128230.3,N,,N,N
Pendle Borough Council,Financial Services,Agency Costs,Liberata U/C,5303,LIBERATA UK LTD,A0051618,24/02/2022,AAS4006542,25424.2,N,,N,N
Pendle Borough Council,Financial Services,Agency Costs,Liberata U/C,5303,LIBERATA UK LTD,A0051618,24/02/2022,AAS0323867,85303.54,N,,N,N
Pendle Borough Council,Financial Services,Agency Costs,Liberata U/C,5303,LIBERATA UK LTD,A0051618,24/02/2022,AAS0323867,112295.49,N,,N,N
Pendle Borough Council,Financial Services,Capital Costs,Capital : Salaries,CD13,LIBERATA UK LTD,A0051618,03/02/2022,AAS0323382,5224.73,N,,N,N
Pendle Borough Council,Engineering & Special Projects,Capital Costs,Ren Grant : 1996 Act,CH22,LIBERATA UK LTD,A0051618,17/02/2022,HED0323649,1755.31,N,,N,N
Pendle Borough Council,Property Services,Premises Related Expense,Electricity,2203,SOUTHERN ELECTRIC,A0051726,10/02/2022,EST0323498,203.17,N,,N,N
Pendle Borough Council,Human Resources,Supplies and Services,Other Expenses,4705,FIDELITI LIMITED,A0052058,10/02/2022,PER0323448,2.7,N,,N,N
Pendle Borough Council,Engineering & Special Projects,Supplies and Services,Other Expenses,4705,TOGETHER HOUSING ASSOCIATION,A0055008,03/02/2022,HED0323368,150.74,N,,N,N
Pendle Borough Council,Financial Services,Supplies and Services,Consultants Fees,4401,L G FUTURES LIMITED,A0056113,03/02/2022,AAS0323369,1795,N,,N,N
Pendle Borough Council,Property Services,Premises Related Expense,Gas,2202,BRITISH GAS,A0057202,03/02/2022,EST0323331,14.62,N,,N,N
Pendle Borough Council,Operational Services,Support Services,Admin Buildings Expenses,7001,CHUBB FIRE & SECURITY LTD,A0057603,17/02/2022,OPS0323583,775.42,N,,N,N
Pendle Borough Council,Operational Services,Support Services,Admin Buildings Expenses,7001,CHUBB FIRE & SECURITY LTD,A0057603,17/02/2022,OPS0323582,908.05,N,,N,N
Pendle Borough Council,Operational Services,Transport Related Expense,Tprt : Repairs : General,3105,UNITED UTILITIES,A0059246,10/02/2022,OPS0323399,21.32,N,,N,N
Pendle Borough Council,Operational Services,Transport Related Expense,Tprt : Repairs : General,3105,UNITED UTILITIES,A0059246,10/02/2022,OPS0323399,38.48,N,,N,N
Pendle Borough Council,Engineering & Special Projects,Agency Costs,Lancashire C C,5102,NSL LIMITED,A0059256,10/02/2022,HED0323438,2110.03,N,,N,N
Pendle Borough Council,Engineering & Special Projects,Supplies and Services,Adverts : Statutory Notice,4702,JPIMEDIA PUBLISHING LIMITED,A0059640,24/02/2022,HED0323801,194.4,N,,N,N
Pendle Borough Council,Engineering & Special Projects,Supplies and Services,Adverts : Statutory Notice,4702,JPIMEDIA PUBLISHING LIMITED,A0059640,10/02/2022,HED0323435,218.7,N,,N,N
Pendle Borough Council,Engineering & Special Projects,Supplies and Services,Adverts : Statutory Notice,4702,JPIMEDIA PUBLISHING LIMITED,A0059640,17/02/2022,HED0323650,218.7,N,,N,N
Pendle Borough Council,Engineering & Special Projects,Supplies and Services,Adverts : Statutory Notice,4702,JPIMEDIA PUBLISHING LIMITED,A0059640,03/02/2022,HED0323209,315.9,N,,N,N
Pendle Borough Council,Engineering & Special Projects,Supplies and Services,Adverts : Statutory Notice,4702,JPIMEDIA PUBLISHING LIMITED,A0059640,17/02/2022,HED0323659,315.9,N,,N,N
Pendle Borough Council,Engineering & Special Projects,Supplies and Services,Adverts : Statutory Notice,4702,JPIMEDIA PUBLISHING LIMITED,A0059640,10/02/2022,HED0323436,340.2,N,,N,N
Pendle Borough Council,Engineering & Special Projects,Transfer Payments,Accommodation ,6103,HILL VIEW (PRIVATE) HOTEL,A0059754,10/02/2022,HED0323395,195,N,,N,N
Pendle Borough Council,Engineering & Special Projects,Transfer Payments,Accommodation ,6103,HILL VIEW (PRIVATE) HOTEL,A0059754,10/02/2022,HED0323394,15760,N,,N,N
Pendle Borough Council,Property Services,Premises Related Expense,Bldgs : R & M : Day To Day,2001,MAXIGIENE ENVIRONMENTAL SERVICES LTD,A0060911,03/02/2022,EST0323326,25,N,,N,N
Pendle Borough Council,Property Services,Premises Related Expense,Bldgs : R & M : Day To Day,2001,MAXIGIENE ENVIRONMENTAL SERVICES LTD,A0060911,03/02/2022,EST0323329,25,N,,N,N
Pendle Borough Council,Property Services,Premises Related Expense,Bldgs : R & M : Day To Day,2001,MAXIGIENE ENVIRONMENTAL SERVICES LTD,A0060911,03/02/2022,EST0323325,35,N,,N,N
Pendle Borough Council,Property Services,Premises Related Expense,Bldgs : R & M : Day To Day,2001,MAXIGIENE ENVIRONMENTAL SERVICES LTD,A0060911,03/02/2022,EST0323328,35,N,,N,N
Pendle Borough Council,Property Services,Premises Related Expense,Bldgs : R & M : Day To Day,2001,MAXIGIENE ENVIRONMENTAL SERVICES LTD,A0060911,03/02/2022,EST0323324,745,N,,N,N
Pendle Borough Council,Property Services,Premises Related Expense,Bldgs : R & M : Day To Day,2001,MAXIGIENE ENVIRONMENTAL SERVICES LTD,A0060911,03/02/2022,EST0323327,745,N,,N,N
Pendle Borough Council,Operational Services,Supplies and Services,EFM Materials,4004,CONTAINER CARE SOLUTIONS LIMITED,A0061112,03/02/2022,OPS0323228,95,N,,N,N
Pendle Borough Council,Operational Services,Supplies and Services,EFM Materials,4004,CONTAINER CARE SOLUTIONS LIMITED,A0061112,17/02/2022,OPS0323577,220,N,,N,N
Pendle Borough Council,Operational Services,Supplies and Services,EFM Materials,4004,CONTAINER CARE SOLUTIONS LIMITED,A0061112,17/02/2022,OPS0323577,440,N,,N,N
Pendle Borough Council,Operational Services,Supplies and Services,EFM Materials,4004,CONTAINER CARE SOLUTIONS LIMITED,A0061112,17/02/2022,OPS0323577,440,N,,N,N
Pendle Borough Council,Operational Services,Supplies and Services,EFM Materials,4004,CONTAINER CARE SOLUTIONS LIMITED,A0061112,03/02/2022,OPS0323229,1100,N,,N,N
Pendle Borough Council,Operational Services,Capital Costs,Capital : Payments,CD14,CONTAINER CARE SOLUTIONS LIMITED,A0061112,03/02/2022,OPS0323228,455,N,,N,N
Pendle Borough Council,Parks & Recreation Services,Premises Related Expense,Electricity,2203,E.ON ENERGY SERVICES,A0062618,03/02/2022,PCO0323217,17.92,N,,N,N
Pendle Borough Council,Operational Services,Premises Related Expense,Bldgs : R & M : Day To Day,2001,NORTH WEST TRADING COMPANY,A0063527,03/02/2022,OPS0323288,319,N,,N,N
Pendle Borough Council,Operational Services,Premises Related Expense,Bldgs : R & M : Day To Day,2001,NORTH WEST TRADING COMPANY,A0063527,10/02/2022,OPS0323386,487.29,N,,N,N
Pendle Borough Council,Human Resources,Transport Related Expense,Car Allows : Offs : Lease Exps,3806,ARNOLD CLARK VEHICLE MANAGEMENT,A0065524,10/02/2022,PER0323449,22.42,N,,N,N
Pendle Borough Council,Human Resources,Transport Related Expense,Car Allows : Offs : Lease Exps,3806,ARNOLD CLARK VEHICLE MANAGEMENT,A0065524,10/02/2022,PER0323449,147.23,N,,N,N
Pendle Borough Council,Human Resources,Transport Related Expense,Car Allows : Offs : Lease Exps,3806,ARNOLD CLARK VEHICLE MANAGEMENT,A0065524,10/02/2022,PER0323449,176.67,N,,N,N
Pendle Borough Council,Engineering & Special Projects,,Fees Income : VATable,9202,REDACT - PERSONAL DATA,A0065612,10/02/2022,HED0323476,450,N,,N,N
Pendle Borough Council,Engineering & Special Projects,Supplies and Services,Meeting Expenses,4610,THE RAINHALL CENTRE,A0066193,10/02/2022,HED0323464,45,N,,N,N
Pendle Borough Council,Engineering & Special Projects,Capital Costs,Ren Grant : 1996 Act,CH22,ATM CONSTRUCTION LTD,A0066308,17/02/2022,HED0323651,16232.32,N,,N,N
Pendle Borough Council,Human Resources,Transport Related Expense,Car Allows : Offs : Lease Exps,3806,LEX AUTOLEASE LIMITED,A0066530,03/02/2022,PER0323204,578.28,N,,N,N
Pendle Borough Council,Human Resources,Transport Related Expense,Car Allows : Offs : Lease Exps,3806,LEX AUTOLEASE LIMITED,A0066530,03/02/2022,PER0323204,1990.38,N,,N,N
Pendle Borough Council,Human Resources,Transport Related Expense,Car Allows : Offs : Lease Exps,3806,LEX AUTOLEASE LIMITED,A0066530,03/02/2022,PER0323204,2388.45,N,,N,N
Pendle Borough Council,Property Services,Premises Related Expense,Bldgs : R & M : Day To Day,2001,SPEAKMAN CONTRACTORS LTD,A0066581,17/02/2022,EST0323678,140.83,N,,N,N
Pendle Borough Council,Property Services,Premises Related Expense,Bldgs : R & M : Day To Day,2001,SPEAKMAN CONTRACTORS LTD,A0066581,17/02/2022,EST0323678,51.75,N,,N,N
Pendle Borough Council,Property Services,Premises Related Expense,Bldgs : R & M : Day To Day,2001,SPEAKMAN CONTRACTORS LTD,A0066581,17/02/2022,EST0323678,161.19,N,,N,N
Pendle Borough Council,Property Services,Premises Related Expense,Bldgs : R & M : Day To Day,2001,SPEAKMAN CONTRACTORS LTD,A0066581,17/02/2022,EST0323678,82,N,,N,N
Pendle Borough Council,Property Services,Premises Related Expense,Bldgs : R & M : Day To Day,2001,SPEAKMAN CONTRACTORS LTD,A0066581,17/02/2022,EST0323678,101.42,N,,N,N
Pendle Borough Council,Property Services,Premises Related Expense,Bldgs : R & M : Day To Day,2001,SPEAKMAN CONTRACTORS LTD,A0066581,17/02/2022,EST0323678,28.14,N,,N,N
Pendle Borough Council,Property Services,Premises Related Expense,Bldgs : R & M : Day To Day,2001,SPEAKMAN CONTRACTORS LTD,A0066581,17/02/2022,EST0323678,203.32,N,,N,N
Pendle Borough Council,Property Services,Premises Related Expense,Bldgs : R & M : Day To Day,2001,SPEAKMAN CONTRACTORS LTD,A0066581,17/02/2022,EST0323678,1180,N,,N,N
Pendle Borough Council,Property Services,Premises Related Expense,Bldgs : R & M : Day To Day,2001,SPEAKMAN CONTRACTORS LTD,A0066581,17/02/2022,EST0323678,37.17,N,,N,N
Pendle Borough Council,Property Services,Premises Related Expense,Bldgs : R & M : Day To Day,2001,SPEAKMAN CONTRACTORS LTD,A0066581,17/02/2022,EST0323678,39,N,,N,N
Pendle Borough Council,Property Services,Premises Related Expense,Bldgs : R & M : Day To Day,2001,SPEAKMAN CONTRACTORS LTD,A0066581,17/02/2022,EST0323678,73.17,N,,N,N
Pendle Borough Council,Property Services,Premises Related Expense,Bldgs : R & M : Day To Day,2001,SPEAKMAN CONTRACTORS LTD,A0066581,17/02/2022,EST0323678,508.36,N,,N,N
Pendle Borough Council,Property Services,Capital Costs,Capital : Payments,CD14,SPEAKMAN CONTRACTORS LTD,A0066581,17/02/2022,EST0323678,214.5,N,,N,N
Pendle Borough Council,Property Services,Capital Costs,Capital : Payments,CD14,SPEAKMAN CONTRACTORS LTD,A0066581,10/02/2022,EST0323497,2554.54,N,,N,N
Pendle Borough Council,Property Services,,Paid in the Year,PD03,SPEAKMAN CONTRACTORS LTD,A0066581,17/02/2022,EST0323678,9233.6,N,,N,N
Pendle Borough Council,Human Resources,Indirect Employee Expenses,Emp : Medical Expenses,1236,PEOPLE ASSET MANAGEMENT LIMITED,A0067613,03/02/2022,PER0323203,65,N,,N,N
Pendle Borough Council,Human Resources,Indirect Employee Expenses,Emp : Medical Expenses,1236,PEOPLE ASSET MANAGEMENT LIMITED,A0067613,17/02/2022,PER0323567,65,N,,N,N
Pendle Borough Council,Human Resources,Indirect Employee Expenses,Emp : Medical Expenses,1236,PEOPLE ASSET MANAGEMENT LIMITED,A0067613,03/02/2022,PER0323203,110,N,,N,N
Pendle Borough Council,Human Resources,Indirect Employee Expenses,Emp : Medical Expenses,1236,PEOPLE ASSET MANAGEMENT LIMITED,A0067613,17/02/2022,PER0323565,110,N,,N,N
Pendle Borough Council,Human Resources,Indirect Employee Expenses,Emp : Medical Expenses,1236,PEOPLE ASSET MANAGEMENT LIMITED,A0067613,17/02/2022,PER0323567,110,N,,N,N
Pendle Borough Council,Engineering & Special Projects,Supplies and Services,LCC Levy (Admins Costs),4419,PATROL,A0067663,10/02/2022,HED0323428,33,N,,N,N
Pendle Borough Council,Operational Services,Supplies and Services,Publicity & advertisement,4704,LIMPET LABELS UK LIMITED,A0067671,10/02/2022,OPS0323544,424.17,N,,N,N
Pendle Borough Council,Operational Services,Transport Related Expense,Tprt : Repairs : General,3105,PROBRUSH T/A NORTHERN MUNICIPAL SPARES LTD,A0068263,24/02/2022,OPS0323785,455.33,N,,N,N
Pendle Borough Council,Operational Services,Transport Related Expense,Tprt : Repairs : General,3105,PROBRUSH T/A NORTHERN MUNICIPAL SPARES LTD,A0068263,24/02/2022,OPS0323785,455.33,N,,N,N
Pendle Borough Council,Operational Services,Transport Related Expense,Tprt : Repairs : General,3105,PROBRUSH T/A NORTHERN MUNICIPAL SPARES LTD,A0068263,24/02/2022,OPS0323785,455.33,N,,N,N
Pendle Borough Council,Operational Services,Transport Related Expense,Tprt : Repairs : General,3105,PROBRUSH T/A NORTHERN MUNICIPAL SPARES LTD,A0068263,24/02/2022,OPS0323785,455.33,N,,N,N
Pendle Borough Council,Operational Services,Transport Related Expense,Tprt : Repairs : General,3105,PROBRUSH T/A NORTHERN MUNICIPAL SPARES LTD,A0068263,24/02/2022,OPS0323785,455.33,N,,N,N
Pendle Borough Council,Operational Services,Transport Related Expense,Tprt : Repairs : General,3105,PROBRUSH T/A NORTHERN MUNICIPAL SPARES LTD,A0068263,24/02/2022,OPS0323785,455.31,N,,N,N
Pendle Borough Council,Engineering & Special Projects,Supplies and Services,Processing Fees,4424,CHIPSIDE LTD,A0068587,10/02/2022,HED0323429,8.62,N,,N,N
Pendle Borough Council,Engineering & Special Projects,Supplies and Services,Processing Fees,4424,CHIPSIDE LTD,A0068587,24/02/2022,HED0323817,122.85,N,,N,N
Pendle Borough Council,Engineering & Special Projects,Supplies and Services,Other Expenses,4705,ELECTRICITY NORTH WEST LIMITED,A0068905,03/02/2022,HED0323364,1405.57,N,,N,N
Pendle Borough Council,Engineering & Special Projects,,Govt Funding GF,9017,ACTIVE LANCASHIRE LIMITED,A0070149,03/02/2022,HED0323335,24929.25,N,1159832,N,N
Pendle Borough Council,Operational Services,Supplies and Services,Sub-Contractors,4007,QHS SOLUTIONS LIMITED,A0071912,10/02/2022,OPS0323405,8000,N,,N,N
Pendle Borough Council,Operational Services,Supplies and Services,Sub-Contractors,4007,RENTOKIL INITIAL UK LIMITED,A0072816,10/02/2022,OPS0323387,151.28,N,,N,N
Pendle Borough Council,Operational Services,Supplies and Services,Sub-Contractors,4007,RENTOKIL INITIAL UK LIMITED,A0072816,17/02/2022,OPS0323585,5.24,N,,N,N
Pendle Borough Council,Operational Services,Supplies and Services,Sub-Contractors,4007,RENTOKIL INITIAL UK LIMITED,A0072816,10/02/2022,OPS0323387,26.87,N,,N,N
Pendle Borough Council,Parks & Recreation Services,Supplies and Services,Protective Clothing,4201,REACTEC LIMITED,A0072817,10/02/2022,PCO0323365,222.01,N,,N,N
Pendle Borough Council,Engineering & Special Projects,Capital Costs,Capital : Salaries,CD13,TRAFFORD MB COUNCIL,A0074059,10/02/2022,HED0323522,19594,N,,N,N
Pendle Borough Council,Engineering & Special Projects,Supplies and Services,Other Expenses,4705,GISBURN ROAD COMMUNITY PRIMARY SCHOOL,A0074210,17/02/2022,HED0323683,420,N,,N,N
Pendle Borough Council,Engineering & Special Projects,Capital Costs,Capital : Payments,CD14,OCEAN BATHROOMS TILES & HEATING LTD,A0075367,10/02/2022,HED0323479,300,N,,N,N
Pendle Borough Council,Engineering & Special Projects,Capital Costs,Ren Grant : 1996 Act,CH22,OCEAN BATHROOMS TILES & HEATING LTD,A0075367,17/02/2022,HED0323657,6249,N,,N,N
Pendle Borough Council,Engineering & Special Projects,Supplies and Services,Printing & Stationery,4301,THOMSON REUTERS PROFESSIONAL UK LIMITED,A0077400,17/02/2022,HED0323643,314,N,,N,N
Pendle Borough Council,Democratic & Legal Services,Supplies and Services,Reference Books Acts,4304,THOMSON REUTERS PROFESSIONAL UK LIMITED,A0077400,10/02/2022,DAL0323521,1046.66,N,,N,N
Pendle Borough Council,Engineering & Special Projects,Capital Costs,Capital : Salaries,CD13,HILL DICKINSON LLP,A0080232,10/02/2022,HED0323529,475,N,,N,N
Pendle Borough Council,Engineering & Special Projects,Supplies and Services,Other Expenses,4705,QUALITY HOMES (NW) LIMITED,A0081253,10/02/2022,HED0323461,340,N,,N,N
Pendle Borough Council,Operational Services,Supplies and Services,Other Expenses,4705,WEBASPX LIMITED,A0082416,03/02/2022,OPS0323230,1228.27,N,,N,N
Pendle Borough Council,Operational Services,Capital Costs,Capital : Payments,CD14,WEBASPX LIMITED,A0082416,03/02/2022,OPS0323230,7777.73,N,,N,N
Pendle Borough Council,Financial Services,Support Services,District Audit Fees,7202,GRANT THORNTON UK LLP,A0084044,10/02/2022,AAS0323536,11500,N,,N,N
Pendle Borough Council,Financial Services,Supplies and Services,Allpay,4422,ALLPAY LIMITED,A0084372,03/02/2022,AAS0323377,10,N,,N,N
Pendle Borough Council,Financial Services,Supplies and Services,Allpay,4422,ALLPAY LIMITED,A0084372,03/02/2022,AAS0323376,10.42,N,,N,N
Pendle Borough Council,Financial Services,Supplies and Services,Allpay,4422,ALLPAY LIMITED,A0084372,03/02/2022,AAS0323374,20.69,N,,N,N
Pendle Borough Council,Financial Services,Supplies and Services,Allpay,4422,ALLPAY LIMITED,A0084372,03/02/2022,AAS0323373,23.22,N,,N,N
Pendle Borough Council,Financial Services,Supplies and Services,Allpay,4422,ALLPAY LIMITED,A0084372,03/02/2022,AAS0323378,66.08,N,,N,N
Pendle Borough Council,Financial Services,Supplies and Services,Allpay,4422,ALLPAY LIMITED,A0084372,03/02/2022,AAS0323375,1523.91,N,,N,N
Pendle Borough Council,Engineering & Special Projects,Capital Costs,Capital : Payments,CD14,ELITE PLUMBING,A0084584,03/02/2022,HED0323206,1450,N,,N,N
Pendle Borough Council,Engineering & Special Projects,Capital Costs,Ren Grant : 1996 Act,CH22,ELITE PLUMBING,A0084584,17/02/2022,HED0323655,1800,N,,N,N
Pendle Borough Council,Engineering & Special Projects,Capital Costs,Ren Grant : 1996 Act,CH22,ELITE PLUMBING,A0084584,17/02/2022,HED0323654,4624,N,,N,N
Pendle Borough Council,Engineering & Special Projects,Capital Costs,Ren Grant : 1996 Act,CH22,ELITE PLUMBING,A0084584,10/02/2022,HED0323430,8521.7,N,,N,N
Pendle Borough Council,Engineering & Special Projects,Supplies and Services,Printing & Stationery,4301,TRODAT (UK) LIMITED,A0085027,10/02/2022,HED0323475,163.68,N,,N,N
Pendle Borough Council,Engineering & Special Projects,Premises Related Expense,Grounds : R & M : Day to Day : Routine,2101,KEVIN WILKINSON LANDSCAPES LTD,A0085660,17/02/2022,HED0323682,117.5,N,,N,N
Pendle Borough Council,Engineering & Special Projects,Premises Related Expense,Grounds : R & M : Day to Day : Routine,2101,KEVIN WILKINSON LANDSCAPES LTD,A0085660,10/02/2022,HED0323530,192,N,,N,N
Pendle Borough Council,Engineering & Special Projects,Supplies and Services,Consultants Fees,4401,PLANIT IE LIMITED,A0085851,17/02/2022,HED0323525,5150,N,,N,N
Pendle Borough Council,Engineering & Special Projects,Capital Costs,Capital : Payments,CD14,MARCHBRIDGE BUILDERS LIMITED,A0087284,24/02/2022,HED0323848,38622.43,N,,N,N
Pendle Borough Council,Engineering & Special Projects,Capital Costs,Capital : Payments,CD14,MARCHBRIDGE BUILDERS LIMITED,A0087284,03/02/2022,HED0323347,1120,N,,N,N
Pendle Borough Council,Property Services,Premises Related Expense,Bldgs : R & M : Day To Day,2001,JETCAM CLEANSING COLNE LTD,A0088807,03/02/2022,EST0323323,140,N,,N,N
Pendle Borough Council,Financial Services,Premises Related Expense,Bldgs : R & M : Day To Day,2001,CATCHPOINT (UK) LIMITED,A0089500,10/02/2022,AAS4006525,-640,N,,N,N
Pendle Borough Council,Property Services,Capital Costs,Capital : Payments,CD14,CATCHPOINT (UK) LIMITED,A0089500,10/02/2022,EST0323491,2900,N,,N,N
Pendle Borough Council,Financial Services,Supplies and Services,Subscriptions & Donations,4706,INFORM CPI LIMITED,A0089895,24/02/2022,AAS0323866,495,N,,N,N
Pendle Borough Council,Financial Services,Supplies and Services,Subscriptions & Donations,4706,INFORM CPI LIMITED,A0089895,24/02/2022,AAS0323865,1597.5,N,,N,N
Pendle Borough Council,Engineering & Special Projects,Capital Costs,Capital : Payments,CD14,O`CALLAGHAN LIMITED,A0090052,03/02/2022,HED0323349,76021.19,N,,N,N
Pendle Borough Council,Engineering & Special Projects,Capital Costs,Capital : Payments,CD14,PENNINE ECOLOGICAL (BOLTON),A0090258,03/02/2022,HED0323350,1490,N,,N,N
Pendle Borough Council,Financial Services,Transport Related Expense,Diesel Oil,3202,FUELMATE LTD,A0090265,15/02/2022,AAS0324050,167.22,N,,N,N
Pendle Borough Council,Financial Services,Transport Related Expense,Diesel Oil,3202,FUELMATE LTD,A0090265,22/02/2022,AAS0324051,178.65,N,,N,N
Pendle Borough Council,Financial Services,Transport Related Expense,Diesel Oil,3202,FUELMATE LTD,A0090265,01/02/2022,AAS0324048,206.45,N,,N,N
Pendle Borough Council,Financial Services,Transport Related Expense,Diesel Oil,3202,FUELMATE LTD,A0090265,08/02/2022,AAS0324049,339.48,N,,N,N
Pendle Borough Council,Financial Services,Transport Related Expense,Diesel Oil,3202,FUELMATE LTD,A0090265,22/02/2022,AAS0324051,205.63,N,,N,N
Pendle Borough Council,Financial Services,Transport Related Expense,Diesel Oil,3202,FUELMATE LTD,A0090265,15/02/2022,AAS0324050,331.03,N,,N,N
Pendle Borough Council,Financial Services,Transport Related Expense,Diesel Oil,3202,FUELMATE LTD,A0090265,08/02/2022,AAS0324049,338.53,N,,N,N
Pendle Borough Council,Financial Services,Transport Related Expense,Diesel Oil,3202,FUELMATE LTD,A0090265,01/02/2022,AAS0324048,414.52,N,,N,N
Pendle Borough Council,Financial Services,Transport Related Expense,Diesel Oil,3202,FUELMATE LTD,A0090265,22/02/2022,AAS0324051,183.1,N,,N,N
Pendle Borough Council,Financial Services,Transport Related Expense,Diesel Oil,3202,FUELMATE LTD,A0090265,15/02/2022,AAS0324050,216.83,N,,N,N
Pendle Borough Council,Financial Services,Transport Related Expense,Diesel Oil,3202,FUELMATE LTD,A0090265,01/02/2022,AAS0324048,298.02,N,,N,N
Pendle Borough Council,Financial Services,Transport Related Expense,Diesel Oil,3202,FUELMATE LTD,A0090265,08/02/2022,AAS0324049,360.4,N,,N,N
Pendle Borough Council,Financial Services,Transport Related Expense,Diesel Oil,3202,FUELMATE LTD,A0090265,22/02/2022,AAS0324051,291.58,N,,N,N
Pendle Borough Council,Financial Services,Transport Related Expense,Diesel Oil,3202,FUELMATE LTD,A0090265,15/02/2022,AAS0324050,307.03,N,,N,N
Pendle Borough Council,Financial Services,Transport Related Expense,Diesel Oil,3202,FUELMATE LTD,A0090265,01/02/2022,AAS0324048,324.54,N,,N,N
Pendle Borough Council,Financial Services,Transport Related Expense,Diesel Oil,3202,FUELMATE LTD,A0090265,08/02/2022,AAS0324049,414.72,N,,N,N
Pendle Borough Council,Financial Services,Transport Related Expense,Diesel Oil,3202,FUELMATE LTD,A0090265,15/02/2022,AAS0324050,249.76,N,,N,N
Pendle Borough Council,Financial Services,Transport Related Expense,Diesel Oil,3202,FUELMATE LTD,A0090265,08/02/2022,AAS0324049,295.37,N,,N,N
Pendle Borough Council,Financial Services,Transport Related Expense,Diesel Oil,3202,FUELMATE LTD,A0090265,01/02/2022,AAS0324048,412.71,N,,N,N
Pendle Borough Council,Financial Services,Transport Related Expense,Diesel Oil,3202,FUELMATE LTD,A0090265,22/02/2022,AAS0324051,420.92,N,,N,N
Pendle Borough Council,Financial Services,Transport Related Expense,Diesel Oil,3202,FUELMATE LTD,A0090265,08/02/2022,AAS0324049,139.67,N,,N,N
Pendle Borough Council,Financial Services,Transport Related Expense,Diesel Oil,3202,FUELMATE LTD,A0090265,22/02/2022,AAS0324051,251.39,N,,N,N
Pendle Borough Council,Financial Services,Transport Related Expense,Diesel Oil,3202,FUELMATE LTD,A0090265,15/02/2022,AAS0324050,380.34,N,,N,N
Pendle Borough Council,Financial Services,Transport Related Expense,Diesel Oil,3202,FUELMATE LTD,A0090265,01/02/2022,AAS0324048,403.88,N,,N,N
Pendle Borough Council,Financial Services,Transport Related Expense,Diesel Oil,3202,FUELMATE LTD,A0090265,01/02/2022,AAS0324048,203.1,N,,N,N
Pendle Borough Council,Financial Services,Transport Related Expense,Diesel Oil,3202,FUELMATE LTD,A0090265,22/02/2022,AAS0324051,226.96,N,,N,N
Pendle Borough Council,Financial Services,Transport Related Expense,Diesel Oil,3202,FUELMATE LTD,A0090265,15/02/2022,AAS0324050,259.16,N,,N,N
Pendle Borough Council,Financial Services,Transport Related Expense,Diesel Oil,3202,FUELMATE LTD,A0090265,08/02/2022,AAS0324049,292.76,N,,N,N
Pendle Borough Council,Financial Services,Transport Related Expense,Diesel Oil,3202,FUELMATE LTD,A0090265,15/02/2022,AAS0324050,99.62,N,,N,N
Pendle Borough Council,Financial Services,Transport Related Expense,Diesel Oil,3202,FUELMATE LTD,A0090265,01/02/2022,AAS0324048,152.43,N,,N,N
Pendle Borough Council,Financial Services,Transport Related Expense,Diesel Oil,3202,FUELMATE LTD,A0090265,22/02/2022,AAS0324051,200.26,N,,N,N
Pendle Borough Council,Financial Services,Transport Related Expense,Diesel Oil,3202,FUELMATE LTD,A0090265,15/02/2022,AAS0324050,223.67,N,,N,N
Pendle Borough Council,Financial Services,Transport Related Expense,Diesel Oil,3202,FUELMATE LTD,A0090265,22/02/2022,AAS0324051,281.82,N,,N,N
Pendle Borough Council,Financial Services,Transport Related Expense,Diesel Oil,3202,FUELMATE LTD,A0090265,01/02/2022,AAS0324048,319.05,N,,N,N
Pendle Borough Council,Financial Services,Transport Related Expense,Diesel Oil,3202,FUELMATE LTD,A0090265,08/02/2022,AAS0324049,361.03,N,,N,N
Pendle Borough Council,Financial Services,Transport Related Expense,Diesel Oil,3202,FUELMATE LTD,A0090265,15/02/2022,AAS0324050,229.2,N,,N,N
Pendle Borough Council,Financial Services,Transport Related Expense,Diesel Oil,3202,FUELMATE LTD,A0090265,08/02/2022,AAS0324049,334.63,N,,N,N
Pendle Borough Council,Financial Services,Transport Related Expense,Diesel Oil,3202,FUELMATE LTD,A0090265,22/02/2022,AAS0324051,348.7,N,,N,N
Pendle Borough Council,Financial Services,Transport Related Expense,Diesel Oil,3202,FUELMATE LTD,A0090265,01/02/2022,AAS0324048,384.63,N,,N,N
Pendle Borough Council,Financial Services,Transport Related Expense,Diesel Oil,3202,FUELMATE LTD,A0090265,08/02/2022,AAS0324049,179.35,N,,N,N
Pendle Borough Council,Financial Services,Transport Related Expense,Diesel Oil,3202,FUELMATE LTD,A0090265,22/02/2022,AAS0324051,291.38,N,,N,N
Pendle Borough Council,Financial Services,Transport Related Expense,Diesel Oil,3202,FUELMATE LTD,A0090265,15/02/2022,AAS0324050,312.07,N,,N,N
Pendle Borough Council,Financial Services,Transport Related Expense,Diesel Oil,3202,FUELMATE LTD,A0090265,01/02/2022,AAS0324048,330.92,N,,N,N
Pendle Borough Council,Financial Services,Transport Related Expense,Diesel Oil,3202,FUELMATE LTD,A0090265,22/02/2022,AAS0324051,235.39,N,,N,N
Pendle Borough Council,Financial Services,Transport Related Expense,Diesel Oil,3202,FUELMATE LTD,A0090265,15/02/2022,AAS0324050,276.69,N,,N,N
Pendle Borough Council,Financial Services,Transport Related Expense,Diesel Oil,3202,FUELMATE LTD,A0090265,01/02/2022,AAS0324048,316.12,N,,N,N
Pendle Borough Council,Financial Services,Transport Related Expense,Diesel Oil,3202,FUELMATE LTD,A0090265,08/02/2022,AAS0324049,349.97,N,,N,N
Pendle Borough Council,Financial Services,Transport Related Expense,Diesel Oil,3202,FUELMATE LTD,A0090265,22/02/2022,AAS0324051,281.62,N,,N,N
Pendle Borough Council,Financial Services,Transport Related Expense,Diesel Oil,3202,FUELMATE LTD,A0090265,08/02/2022,AAS0324049,291.14,N,,N,N
Pendle Borough Council,Financial Services,Transport Related Expense,Diesel Oil,3202,FUELMATE LTD,A0090265,15/02/2022,AAS0324050,312.51,N,,N,N
Pendle Borough Council,Financial Services,Transport Related Expense,Diesel Oil,3202,FUELMATE LTD,A0090265,01/02/2022,AAS0324048,367.3,N,,N,N
Pendle Borough Council,Financial Services,Transport Related Expense,Diesel Oil,3202,FUELMATE LTD,A0090265,01/02/2022,AAS0324048,189.38,N,,N,N
Pendle Borough Council,Financial Services,Transport Related Expense,Diesel Oil,3202,FUELMATE LTD,A0090265,15/02/2022,AAS0324050,249.02,N,,N,N
Pendle Borough Council,Financial Services,Transport Related Expense,Diesel Oil,3202,FUELMATE LTD,A0090265,22/02/2022,AAS0324051,279.73,N,,N,N
Pendle Borough Council,Financial Services,Transport Related Expense,Diesel Oil,3202,FUELMATE LTD,A0090265,08/02/2022,AAS0324049,423.24,N,,N,N
Pendle Borough Council,Financial Services,Transport Related Expense,Diesel Oil,3202,FUELMATE LTD,A0090265,15/02/2022,AAS0324050,49.53,N,,N,N
Pendle Borough Council,Financial Services,Transport Related Expense,Diesel Oil,3202,FUELMATE LTD,A0090265,22/02/2022,AAS0324051,81.44,N,,N,N
Pendle Borough Council,Financial Services,Transport Related Expense,Diesel Oil,3202,FUELMATE LTD,A0090265,01/02/2022,AAS0324048,190.47,N,,N,N
Pendle Borough Council,Financial Services,Transport Related Expense,Diesel Oil,3202,FUELMATE LTD,A0090265,08/02/2022,AAS0324049,301.15,N,,N,N
Pendle Borough Council,Financial Services,Transport Related Expense,Diesel Oil,3202,FUELMATE LTD,A0090265,01/02/2022,AAS0324048,77.15,N,,N,N
Pendle Borough Council,Financial Services,Transport Related Expense,Diesel Oil,3202,FUELMATE LTD,A0090265,22/02/2022,AAS0324051,140.68,N,,N,N
Pendle Borough Council,Financial Services,Transport Related Expense,Diesel Oil,3202,FUELMATE LTD,A0090265,15/02/2022,AAS0324050,189.65,N,,N,N
Pendle Borough Council,Financial Services,Transport Related Expense,Diesel Oil,3202,FUELMATE LTD,A0090265,08/02/2022,AAS0324049,172.15,N,,N,N
Pendle Borough Council,Financial Services,Transport Related Expense,Diesel Oil,3202,FUELMATE LTD,A0090265,01/02/2022,AAS0324048,211.83,N,,N,N
Pendle Borough Council,Financial Services,Transport Related Expense,Diesel Oil,3202,FUELMATE LTD,A0090265,15/02/2022,AAS0324050,262.86,N,,N,N
Pendle Borough Council,Financial Services,Transport Related Expense,Diesel Oil,3202,FUELMATE LTD,A0090265,22/02/2022,AAS0324051,272.4,N,,N,N
Pendle Borough Council,Financial Services,Transport Related Expense,Diesel Oil,3202,FUELMATE LTD,A0090265,08/02/2022,AAS0324049,58.71,N,,N,N
Pendle Borough Council,Financial Services,Transport Related Expense,Diesel Oil,3202,FUELMATE LTD,A0090265,01/02/2022,AAS0324048,158.84,N,,N,N
Pendle Borough Council,Financial Services,Transport Related Expense,Diesel Oil,3202,FUELMATE LTD,A0090265,22/02/2022,AAS0324051,217.03,N,,N,N
Pendle Borough Council,Financial Services,Transport Related Expense,Diesel Oil,3202,FUELMATE LTD,A0090265,15/02/2022,AAS0324050,243.99,N,,N,N
Pendle Borough Council,Financial Services,Transport Related Expense,Diesel Oil,3202,FUELMATE LTD,A0090265,22/02/2022,AAS0324051,71.26,N,,N,N
Pendle Borough Council,Financial Services,Transport Related Expense,Diesel Oil,3202,FUELMATE LTD,A0090265,08/02/2022,AAS0324049,92.04,N,,N,N
Pendle Borough Council,Financial Services,Transport Related Expense,Diesel Oil,3202,FUELMATE LTD,A0090265,15/02/2022,AAS0324050,101.19,N,,N,N
Pendle Borough Council,Financial Services,Transport Related Expense,Diesel Oil,3202,FUELMATE LTD,A0090265,01/02/2022,AAS0324048,220.79,N,,N,N
Pendle Borough Council,Financial Services,Transport Related Expense,Diesel Oil,3202,FUELMATE LTD,A0090265,08/02/2022,AAS0324049,203.93,N,,N,N
Pendle Borough Council,Financial Services,Transport Related Expense,Diesel Oil,3202,FUELMATE LTD,A0090265,15/02/2022,AAS0324050,205.09,N,,N,N
Pendle Borough Council,Financial Services,Transport Related Expense,Diesel Oil,3202,FUELMATE LTD,A0090265,22/02/2022,AAS0324051,208.56,N,,N,N
Pendle Borough Council,Financial Services,Transport Related Expense,Diesel Oil,3202,FUELMATE LTD,A0090265,01/02/2022,AAS0324048,225.77,N,,N,N
Pendle Borough Council,Financial Services,Transport Related Expense,Diesel Oil,3202,FUELMATE LTD,A0090265,15/02/2022,AAS0324050,93.38,N,,N,N
Pendle Borough Council,Financial Services,Transport Related Expense,Diesel Oil,3202,FUELMATE LTD,A0090265,08/02/2022,AAS0324049,261.09,N,,N,N
Pendle Borough Council,Financial Services,Transport Related Expense,Diesel Oil,3202,FUELMATE LTD,A0090265,15/02/2022,AAS0324050,84.34,N,,N,N
Pendle Borough Council,Financial Services,Transport Related Expense,Diesel Oil,3202,FUELMATE LTD,A0090265,15/02/2022,AAS0324050,91.67,N,,N,N
Pendle Borough Council,Financial Services,Transport Related Expense,Diesel Oil,3202,FUELMATE LTD,A0090265,08/02/2022,AAS0324049,55.68,N,,N,N
Pendle Borough Council,Financial Services,Transport Related Expense,Diesel Oil,3202,FUELMATE LTD,A0090265,01/02/2022,AAS0324048,56.3,N,,N,N
Pendle Borough Council,Financial Services,Transport Related Expense,Diesel Oil,3202,FUELMATE LTD,A0090265,22/02/2022,AAS0324051,60,N,,N,N
Pendle Borough Council,Financial Services,Transport Related Expense,Diesel Oil,3202,FUELMATE LTD,A0090265,15/02/2022,AAS0324050,53.01,N,,N,N
Pendle Borough Council,Financial Services,Transport Related Expense,Diesel Oil,3202,FUELMATE LTD,A0090265,08/02/2022,AAS0324049,53.92,N,,N,N
Pendle Borough Council,Financial Services,Transport Related Expense,Diesel Oil,3202,FUELMATE LTD,A0090265,22/02/2022,AAS0324051,57.94,N,,N,N
Pendle Borough Council,Financial Services,Transport Related Expense,Diesel Oil,3202,FUELMATE LTD,A0090265,01/02/2022,AAS0324048,130.06,N,,N,N
Pendle Borough Council,Financial Services,Transport Related Expense,Diesel Oil,3202,FUELMATE LTD,A0090265,01/02/2022,AAS0324048,76.3,N,,N,N
Pendle Borough Council,Financial Services,Transport Related Expense,Diesel Oil,3202,FUELMATE LTD,A0090265,08/02/2022,AAS0324049,82.14,N,,N,N
Pendle Borough Council,Financial Services,Transport Related Expense,Diesel Oil,3202,FUELMATE LTD,A0090265,22/02/2022,AAS0324051,99.01,N,,N,N
Pendle Borough Council,Financial Services,Transport Related Expense,Diesel Oil,3202,FUELMATE LTD,A0090265,15/02/2022,AAS0324050,120.13,N,,N,N
Pendle Borough Council,Financial Services,Transport Related Expense,Diesel Oil,3202,FUELMATE LTD,A0090265,08/02/2022,AAS0324049,45.38,N,,N,N
Pendle Borough Council,Financial Services,Transport Related Expense,Diesel Oil,3202,FUELMATE LTD,A0090265,22/02/2022,AAS0324051,49,N,,N,N
Pendle Borough Council,Financial Services,Transport Related Expense,Diesel Oil,3202,FUELMATE LTD,A0090265,15/02/2022,AAS0324050,73.56,N,,N,N
Pendle Borough Council,Financial Services,Transport Related Expense,Diesel Oil,3202,FUELMATE LTD,A0090265,01/02/2022,AAS0324048,78.34,N,,N,N
Pendle Borough Council,Financial Services,Transport Related Expense,Diesel Oil,3202,FUELMATE LTD,A0090265,01/02/2022,AAS0324048,43.87,N,,N,N
Pendle Borough Council,Financial Services,Transport Related Expense,Diesel Oil,3202,FUELMATE LTD,A0090265,22/02/2022,AAS0324051,54.77,N,,N,N
Pendle Borough Council,Financial Services,Transport Related Expense,Diesel Oil,3202,FUELMATE LTD,A0090265,08/02/2022,AAS0324049,95.44,N,,N,N
Pendle Borough Council,Financial Services,Transport Related Expense,Diesel Oil,3202,FUELMATE LTD,A0090265,15/02/2022,AAS0324050,95.97,N,,N,N
Pendle Borough Council,Financial Services,Transport Related Expense,Diesel Oil,3202,FUELMATE LTD,A0090265,01/02/2022,AAS0324048,44.37,N,,N,N
Pendle Borough Council,Financial Services,Transport Related Expense,Diesel Oil,3202,FUELMATE LTD,A0090265,22/02/2022,AAS0324051,52.98,N,,N,N
Pendle Borough Council,Financial Services,Transport Related Expense,Diesel Oil,3202,FUELMATE LTD,A0090265,15/02/2022,AAS0324050,52.99,N,,N,N
Pendle Borough Council,Financial Services,Transport Related Expense,Diesel Oil,3202,FUELMATE LTD,A0090265,08/02/2022,AAS0324049,98.76,N,,N,N
Pendle Borough Council,Financial Services,Transport Related Expense,Diesel Oil,3202,FUELMATE LTD,A0090265,08/02/2022,AAS0324049,56.41,N,,N,N
Pendle Borough Council,Financial Services,Transport Related Expense,Diesel Oil,3202,FUELMATE LTD,A0090265,15/02/2022,AAS0324050,62.13,N,,N,N
Pendle Borough Council,Financial Services,Transport Related Expense,Diesel Oil,3202,FUELMATE LTD,A0090265,01/02/2022,AAS0324048,64.45,N,,N,N
Pendle Borough Council,Financial Services,Transport Related Expense,Diesel Oil,3202,FUELMATE LTD,A0090265,22/02/2022,AAS0324051,123.29,N,,N,N
Pendle Borough Council,Financial Services,Transport Related Expense,Diesel Oil,3202,FUELMATE LTD,A0090265,22/02/2022,AAS0324051,50.1,N,,N,N
Pendle Borough Council,Financial Services,Transport Related Expense,Diesel Oil,3202,FUELMATE LTD,A0090265,08/02/2022,AAS0324049,47.07,N,,N,N
Pendle Borough Council,Financial Services,Transport Related Expense,Diesel Oil,3202,FUELMATE LTD,A0090265,08/02/2022,AAS0324049,60.56,N,,N,N
Pendle Borough Council,Financial Services,Transport Related Expense,Diesel Oil,3202,FUELMATE LTD,A0090265,08/02/2022,AAS0324049,40.84,N,,N,N
Pendle Borough Council,Financial Services,Transport Related Expense,Diesel Oil,3202,FUELMATE LTD,A0090265,15/02/2022,AAS0324050,41.95,N,,N,N
Pendle Borough Council,Financial Services,Transport Related Expense,Diesel Oil,3202,FUELMATE LTD,A0090265,22/02/2022,AAS0324051,44.45,N,,N,N
Pendle Borough Council,Financial Services,Transport Related Expense,Diesel Oil,3202,FUELMATE LTD,A0090265,08/02/2022,AAS0324049,37.65,N,,N,N
Pendle Borough Council,Financial Services,Transport Related Expense,Diesel Oil,3202,FUELMATE LTD,A0090265,01/02/2022,AAS0324048,42.38,N,,N,N
Pendle Borough Council,Financial Services,Transport Related Expense,Diesel Oil,3202,FUELMATE LTD,A0090265,01/02/2022,AAS0324048,48.76,N,,N,N
Pendle Borough Council,Financial Services,Transport Related Expense,Diesel Oil,3202,FUELMATE LTD,A0090265,15/02/2022,AAS0324050,33.83,N,,N,N
Pendle Borough Council,Financial Services,Transport Related Expense,Diesel Oil,3202,FUELMATE LTD,A0090265,08/02/2022,AAS0324049,77.91,N,,N,N
Pendle Borough Council,Financial Services,Transport Related Expense,Diesel Oil,3202,FUELMATE LTD,A0090265,15/02/2022,AAS0324050,59.97,N,,N,N
Pendle Borough Council,Financial Services,Transport Related Expense,Diesel Oil,3202,FUELMATE LTD,A0090265,15/02/2022,AAS0324050,72.13,N,,N,N
Pendle Borough Council,Financial Services,Transport Related Expense,Diesel Oil,3202,FUELMATE LTD,A0090265,01/02/2022,AAS0324048,56.44,N,,N,N
Pendle Borough Council,Financial Services,Transport Related Expense,Diesel Oil,3202,FUELMATE LTD,A0090265,15/02/2022,AAS0324050,58.64,N,,N,N
Pendle Borough Council,Financial Services,Transport Related Expense,Diesel Oil,3202,FUELMATE LTD,A0090265,08/02/2022,AAS0324049,59.01,N,,N,N
Pendle Borough Council,Financial Services,Transport Related Expense,Diesel Oil,3202,FUELMATE LTD,A0090265,15/02/2022,AAS0324050,59.65,N,,N,N
Pendle Borough Council,Financial Services,Transport Related Expense,Diesel Oil,3202,FUELMATE LTD,A0090265,22/02/2022,AAS0324051,66.29,N,,N,N
Pendle Borough Council,Financial Services,Transport Related Expense,Diesel Oil,3202,FUELMATE LTD,A0090265,22/02/2022,AAS0324051,53.26,N,,N,N
Pendle Borough Council,Financial Services,Transport Related Expense,Diesel Oil,3202,FUELMATE LTD,A0090265,08/02/2022,AAS0324049,58.38,N,,N,N
Pendle Borough Council,Financial Services,Transport Related Expense,Diesel Oil,3202,FUELMATE LTD,A0090265,15/02/2022,AAS0324050,63.47,N,,N,N
Pendle Borough Council,Financial Services,Transport Related Expense,Diesel Oil,3202,FUELMATE LTD,A0090265,01/02/2022,AAS0324048,66.4,N,,N,N
Pendle Borough Council,Financial Services,Transport Related Expense,Diesel Oil,3202,FUELMATE LTD,A0090265,22/02/2022,AAS0324051,44.47,N,,N,N
Pendle Borough Council,Financial Services,Transport Related Expense,Diesel Oil,3202,FUELMATE LTD,A0090265,08/02/2022,AAS0324049,45.38,N,,N,N
Pendle Borough Council,Financial Services,Transport Related Expense,Diesel Oil,3202,FUELMATE LTD,A0090265,01/02/2022,AAS0324048,116.75,N,,N,N
Pendle Borough Council,Engineering & Special Projects,Capital Costs,Capital : Payments,CD14,HIGHAM WITH WEST CLOSE BOOTH PC,A0090493,10/02/2022,HED0323465,2500,N,,N,N
Pendle Borough Council,Parks & Recreation Services,Premises Related Expense,Grounds : R & M : Day to Day : Routine,2101,HAGS - SMP LIMITED,A0090707,10/02/2022,PCO0323358,309.58,N,,N,N
Pendle Borough Council,Operational Services,Premises Related Expense,Grounds : R & M : Day to Day : Routine,2101,JOHN MACADAM,A0090709,17/02/2022,OPS0323587,120,N,,N,N
Pendle Borough Council,Operational Services,Premises Related Expense,Grounds : R & M : Day to Day : Routine,2101,JOHN MACADAM,A0090709,17/02/2022,OPS0323590,120,N,,N,N
Pendle Borough Council,Operational Services,Premises Related Expense,Grounds : R & M : Day to Day : Routine,2101,JOHN MACADAM,A0090709,17/02/2022,OPS0323592,120,N,,N,N
Pendle Borough Council,Revenues Services,Supplies and Services,Consultants Fees,4401,PS&P LTD,A0090720,10/02/2022,TRE0323542,2.48,N,,N,N
Pendle Borough Council,Revenues Services,Supplies and Services,Consultants Fees,4401,PS&P LTD,A0090720,10/02/2022,TRE0323541,2.74,N,,N,N
Pendle Borough Council,Revenues Services,Supplies and Services,Consultants Fees,4401,PS&P LTD,A0090720,10/02/2022,TRE0323540,3.22,N,,N,N
Pendle Borough Council,Parks & Recreation Services,Transport Related Expense,Tprt : Repairs : General,3105,SUPER AUTO SAVER,A0090951,10/02/2022,PCO0323460,38.5,N,,N,N
Pendle Borough Council,Parks & Recreation Services,Transport Related Expense,Tprt : Repairs : General,3105,SUPER AUTO SAVER,A0090951,17/02/2022,PCO0323596,28.33,N,,N,N
Pendle Borough Council,Engineering & Special Projects,,Other Income : Non-VATable,9303,REDACT - PERSONAL DATA,A0091069,24/02/2022,HED0323797,20,N,,N,N
Pendle Borough Council,Operational Services,Supplies and Services,Printing & Stationery,4301,RESTORE DATASHRED,A0091201,24/02/2022,OPS0323781,96.5,N,,N,N
Pendle Borough Council,Operational Services,Transport Related Expense,Tprt : Repairs : General,3105,QUARTIX LIMITED,A0091353,24/02/2022,OPS0323843,41.7,N,,N,N
Pendle Borough Council,Operational Services,Transport Related Expense,Tprt : Repairs : General,3105,QUARTIX LIMITED,A0091353,24/02/2022,OPS0323843,41.7,N,,N,N
Pendle Borough Council,Operational Services,Transport Related Expense,Tprt : Repairs : General,3105,QUARTIX LIMITED,A0091353,24/02/2022,OPS0323843,41.7,N,,N,N
Pendle Borough Council,Operational Services,Transport Related Expense,Tprt : Repairs : General,3105,QUARTIX LIMITED,A0091353,24/02/2022,OPS0323843,41.7,N,,N,N
Pendle Borough Council,Operational Services,Transport Related Expense,Tprt : Repairs : General,3105,QUARTIX LIMITED,A0091353,24/02/2022,OPS0323843,41.7,N,,N,N
Pendle Borough Council,Operational Services,Transport Related Expense,Tprt : Repairs : General,3105,QUARTIX LIMITED,A0091353,24/02/2022,OPS0323843,41.7,N,,N,N
Pendle Borough Council,Operational Services,Transport Related Expense,Tprt : Repairs : General,3105,QUARTIX LIMITED,A0091353,24/02/2022,OPS0323843,41.7,N,,N,N
Pendle Borough Council,Operational Services,Transport Related Expense,Tprt : Repairs : General,3105,QUARTIX LIMITED,A0091353,24/02/2022,OPS0323843,41.7,N,,N,N
Pendle Borough Council,Operational Services,Transport Related Expense,Tprt : Repairs : General,3105,QUARTIX LIMITED,A0091353,24/02/2022,OPS0323843,41.7,N,,N,N
Pendle Borough Council,Operational Services,Transport Related Expense,Tprt : Repairs : General,3105,QUARTIX LIMITED,A0091353,24/02/2022,OPS0323843,41.7,N,,N,N
Pendle Borough Council,Operational Services,Transport Related Expense,Tprt : Repairs : General,3105,QUARTIX LIMITED,A0091353,24/02/2022,OPS0323843,41.7,N,,N,N
Pendle Borough Council,Operational Services,Transport Related Expense,Tprt : Repairs : General,3105,QUARTIX LIMITED,A0091353,24/02/2022,OPS0323843,41.7,N,,N,N
Pendle Borough Council,Operational Services,Transport Related Expense,Tprt : Repairs : General,3105,QUARTIX LIMITED,A0091353,24/02/2022,OPS0323843,41.7,N,,N,N
Pendle Borough Council,Operational Services,Transport Related Expense,Tprt : Repairs : General,3105,QUARTIX LIMITED,A0091353,24/02/2022,OPS0323843,41.7,N,,N,N
Pendle Borough Council,Operational Services,Transport Related Expense,Tprt : Repairs : General,3105,QUARTIX LIMITED,A0091353,24/02/2022,OPS0323843,41.7,N,,N,N
Pendle Borough Council,Operational Services,Transport Related Expense,Tprt : Repairs : General,3105,QUARTIX LIMITED,A0091353,24/02/2022,OPS0323843,41.7,N,,N,N
Pendle Borough Council,Operational Services,Transport Related Expense,Tprt : Repairs : General,3105,QUARTIX LIMITED,A0091353,24/02/2022,OPS0323843,41.7,N,,N,N
Pendle Borough Council,Planning & Building Control,Supplies and Services,Other Expenses,4705,BUCKET AND SPADE MEDIA LIMITED,A0091371,10/02/2022,PBC0323555,1480.67,N,,N,N
Pendle Borough Council,Planning & Building Control,Supplies and Services,Other Expenses,4705,BUCKET AND SPADE MEDIA LIMITED,A0091371,10/02/2022,PBC0323555,532.61,N,,N,N
Pendle Borough Council,Planning & Building Control,Supplies and Services,Other Expenses,4705,BUCKET AND SPADE MEDIA LIMITED,A0091371,10/02/2022,PBC0323555,2918.72,N,,N,N
Pendle Borough Council,Operational Services,Transport Related Expense,Diesel Oil,3202,WCF LIMITED,A0091385,17/02/2022,OPS0323575,470,N,,N,N
Pendle Borough Council,Operational Services,Supplies and Services,Sub-Contractors,4007,PERMISERV LIMITED,A0091396,10/02/2022,OPS0323401,11.8,N,,N,N
Pendle Borough Council,Parks & Recreation Services,Premises Related Expense,Grounds : R & M : Day to Day : Routine,2101,MARTINS COUNTRYSIDE CONTRACTING LIMITED,A0091415,24/02/2022,PCO0323754,56,N,,N,N
Pendle Borough Council,Operational Services,Supplies and Services,EFM : Other Equipment,4003,STORM TECHNOLOGIES LIMITED,A0091493,03/02/2022,OPS0323232,94.5,N,,N,N
Pendle Borough Council,Operational Services,Supplies and Services,EFM : Other Equipment,4003,STORM TECHNOLOGIES LIMITED,A0091493,03/02/2022,OPS0323232,189,N,,N,N
Pendle Borough Council,Financial Services,Supplies and Services,Miscellaneous : Other,4707,PS RESEARCH LTD,A0091503,17/02/2022,AAS0323685,3200,N,,N,N
Pendle Borough Council,Planning & Building Control,,Fees Income : Non-VATable,9302,PORTALPLANQUEST LIMITED,A0091554,03/02/2022,PBC0323205,206,N,,N,N
Pendle Borough Council,Planning & Building Control,,Fees Income : Non-VATable,9302,PORTALPLANQUEST LIMITED,A0091554,24/02/2022,PBC0323778,206,N,,N,N
Pendle Borough Council,Parks & Recreation Services,Agency Staff,Emp : Basic Wages,1001,NW RECRUITMENT SERVICES LIMITED,A0091588,03/02/2022,PCO0323223,-79.5,N,,N,N
Pendle Borough Council,Parks & Recreation Services,Agency Staff,Emp : Basic Wages,1001,NW RECRUITMENT SERVICES LIMITED,A0091588,03/02/2022,PCO0323223,150.61,N,,N,N
Pendle Borough Council,Parks & Recreation Services,Agency Staff,Emp : Basic Wages,1001,NW RECRUITMENT SERVICES LIMITED,A0091588,03/02/2022,PCO0323221,165.11,N,,N,N
Pendle Borough Council,Parks & Recreation Services,Agency Staff,Emp : Basic Wages,1001,NW RECRUITMENT SERVICES LIMITED,A0091588,24/02/2022,PCO0323756,807.18,N,,N,N
Pendle Borough Council,Parks & Recreation Services,Agency Staff,Emp : Basic Wages,1001,NW RECRUITMENT SERVICES LIMITED,A0091588,03/02/2022,PCO0323220,905.02,N,,N,N
Pendle Borough Council,Parks & Recreation Services,Agency Staff,Emp : Basic Wages,1001,NW RECRUITMENT SERVICES LIMITED,A0091588,10/02/2022,PCO0323367,913.84,N,,N,N
Pendle Borough Council,Parks & Recreation Services,Agency Staff,Emp : Basic Wages,1001,NW RECRUITMENT SERVICES LIMITED,A0091588,10/02/2022,PCO0323463,953.53,N,,N,N
Pendle Borough Council,Parks & Recreation Services,Agency Staff,Emp : Basic Wages,1001,NW RECRUITMENT SERVICES LIMITED,A0091588,03/02/2022,PCO0323223,1072.6,N,,N,N
Pendle Borough Council,Parks & Recreation Services,Agency Staff,Emp : Basic Wages,1001,NW RECRUITMENT SERVICES LIMITED,A0091588,24/02/2022,PCO0323755,1081.42,N,,N,N
Pendle Borough Council,Operational Services,Agency Staff,Emp : Agency Wages,1004,NW RECRUITMENT SERVICES LIMITED,A0091588,03/02/2022,OPS0323289,1172.78,N,,N,N
Pendle Borough Council,Operational Services,Agency Staff,Emp : Agency Wages,1004,NW RECRUITMENT SERVICES LIMITED,A0091588,03/02/2022,OPS0323291,1291.58,N,,N,N
Pendle Borough Council,Operational Services,Agency Staff,Emp : Agency Wages,1004,NW RECRUITMENT SERVICES LIMITED,A0091588,10/02/2022,OPS0323384,1391.32,N,,N,N
Pendle Borough Council,Operational Services,Agency Staff,Emp : Agency Wages,1004,NW RECRUITMENT SERVICES LIMITED,A0091588,17/02/2022,OPS0323561,1406.67,N,,N,N
Pendle Borough Council,Operational Services,Agency Staff,Emp : Agency Wages,1004,NW RECRUITMENT SERVICES LIMITED,A0091588,17/02/2022,OPS0323563,1665.9,N,,N,N
Pendle Borough Council,Operational Services,Agency Staff,Emp : Agency Wages,1004,NW RECRUITMENT SERVICES LIMITED,A0091588,03/02/2022,OPS0323290,1976.46,N,,N,N
Pendle Borough Council,Operational Services,Agency Staff,Emp : Agency Wages,1004,NW RECRUITMENT SERVICES LIMITED,A0091588,17/02/2022,OPS0323562,2151.54,N,,N,N
Pendle Borough Council,Operational Services,Agency Staff,Emp : Agency Wages,1004,NW RECRUITMENT SERVICES LIMITED,A0091588,03/02/2022,OPS0323291,383.93,N,,N,N
Pendle Borough Council,Operational Services,Agency Staff,Emp : Agency Wages,1004,NW RECRUITMENT SERVICES LIMITED,A0091588,03/02/2022,OPS0323289,861.84,N,,N,N
Pendle Borough Council,Operational Services,Agency Staff,Emp : Agency Wages,1004,NW RECRUITMENT SERVICES LIMITED,A0091588,10/02/2022,OPS0323384,1256.92,N,,N,N
Pendle Borough Council,Operational Services,Agency Staff,Emp : Agency Wages,1004,NW RECRUITMENT SERVICES LIMITED,A0091588,17/02/2022,OPS0323563,1419.03,N,,N,N
Pendle Borough Council,Operational Services,Agency Staff,Emp : Agency Wages,1004,NW RECRUITMENT SERVICES LIMITED,A0091588,03/02/2022,OPS0323290,1630.83,N,,N,N
Pendle Borough Council,Operational Services,Agency Staff,Emp : Agency Wages,1004,NW RECRUITMENT SERVICES LIMITED,A0091588,17/02/2022,OPS0323562,1977.97,N,,N,N
Pendle Borough Council,Operational Services,Agency Staff,Emp : Agency Wages,1004,NW RECRUITMENT SERVICES LIMITED,A0091588,17/02/2022,OPS0323561,2515.59,N,,N,N
Pendle Borough Council,Operational Services,Agency Staff,Emp : Agency Wages,1004,NW RECRUITMENT SERVICES LIMITED,A0091588,03/02/2022,OPS0323291,300.18,N,,N,N
Pendle Borough Council,Operational Services,Agency Staff,Emp : Agency Wages,1004,NW RECRUITMENT SERVICES LIMITED,A0091588,03/02/2022,OPS0323289,489.14,N,,N,N
Pendle Borough Council,Operational Services,Agency Staff,Emp : Agency Wages,1004,NW RECRUITMENT SERVICES LIMITED,A0091588,10/02/2022,OPS0323384,601.29,N,,N,N
Pendle Borough Council,Operational Services,Agency Staff,Emp : Agency Wages,1004,NW RECRUITMENT SERVICES LIMITED,A0091588,17/02/2022,OPS0323562,625.67,N,,N,N
Pendle Borough Council,Operational Services,Agency Staff,Emp : Agency Wages,1004,NW RECRUITMENT SERVICES LIMITED,A0091588,03/02/2022,OPS0323290,757.58,N,,N,N
Pendle Borough Council,Operational Services,Agency Staff,Emp : Agency Wages,1004,NW RECRUITMENT SERVICES LIMITED,A0091588,17/02/2022,OPS0323563,964.91,N,,N,N
Pendle Borough Council,Operational Services,Agency Staff,Emp : Agency Wages,1004,NW RECRUITMENT SERVICES LIMITED,A0091588,17/02/2022,OPS0323561,1152.45,N,,N,N
Pendle Borough Council,Parks & Recreation Services,Agency Staff,Emp : Salaries & Wages,1020,NW RECRUITMENT SERVICES LIMITED,A0091588,03/02/2022,PCO0323222,33.6,N,,N,N
Pendle Borough Council,Parks & Recreation Services,Agency Staff,Emp : Salaries & Wages,1020,NW RECRUITMENT SERVICES LIMITED,A0091588,10/02/2022,PCO0323366,95.2,N,,N,N
Pendle Borough Council,Parks & Recreation Services,Agency Staff,Emp : Salaries & Wages,1020,NW RECRUITMENT SERVICES LIMITED,A0091588,10/02/2022,PCO0323462,162.4,N,,N,N
Pendle Borough Council,Parks & Recreation Services,Agency Staff,Emp : Salaries & Wages,1020,NW RECRUITMENT SERVICES LIMITED,A0091588,03/02/2022,PCO0323219,198.8,N,,N,N
Pendle Borough Council,Parks & Recreation Services,Supplies and Services,EFM : Other Equipment,4003,NW RECRUITMENT SERVICES LIMITED,A0091588,03/02/2022,PCO0323220,336.33,N,,N,N
Pendle Borough Council,Parks & Recreation Services,Supplies and Services,EFM : Other Equipment,4003,NW RECRUITMENT SERVICES LIMITED,A0091588,24/02/2022,PCO0323756,428.05,N,,N,N
Pendle Borough Council,Parks & Recreation Services,Supplies and Services,EFM : Other Equipment,4003,NW RECRUITMENT SERVICES LIMITED,A0091588,03/02/2022,PCO0323223,428.05,N,,N,N
Pendle Borough Council,Parks & Recreation Services,Supplies and Services,EFM : Other Equipment,4003,NW RECRUITMENT SERVICES LIMITED,A0091588,10/02/2022,PCO0323367,428.05,N,,N,N
Pendle Borough Council,Parks & Recreation Services,Supplies and Services,EFM : Other Equipment,4003,NW RECRUITMENT SERVICES LIMITED,A0091588,10/02/2022,PCO0323463,428.05,N,,N,N
Pendle Borough Council,Parks & Recreation Services,Supplies and Services,EFM : Other Equipment,4003,NW RECRUITMENT SERVICES LIMITED,A0091588,24/02/2022,PCO0323755,428.05,N,,N,N
Pendle Borough Council,Engineering & Special Projects,Supplies and Services,EFM : Office and computer equipment,4002,BELLAS OFFICE SUPPLIES & STATIONERY LIMITED,A0091597,24/02/2022,HED0323799,269,N,,N,N
Pendle Borough Council,Operational Services,Premises Related Expense,Bldgs : R & M : Day To Day,2001,GO PLANT FLEET SERVICES LIMITED,A0091600,24/02/2022,OPS0323827,60.55,N,,N,N
Pendle Borough Council,Operational Services,Transport Related Expense,Tprt : Repairs : General,3105,GO PLANT FLEET SERVICES LIMITED,A0091600,03/02/2022,OPS0323256,20.3,N,,N,N
Pendle Borough Council,Operational Services,Transport Related Expense,Tprt : Repairs : General,3105,GO PLANT FLEET SERVICES LIMITED,A0091600,03/02/2022,OPS0323247,64,N,,N,N
Pendle Borough Council,Operational Services,Transport Related Expense,Tprt : Repairs : General,3105,GO PLANT FLEET SERVICES LIMITED,A0091600,24/02/2022,OPS0323806,228.99,N,,N,N
Pendle Borough Council,Operational Services,Transport Related Expense,Tprt : Repairs : General,3105,GO PLANT FLEET SERVICES LIMITED,A0091600,24/02/2022,OPS0323814,124.25,N,,N,N
Pendle Borough Council,Operational Services,Transport Related Expense,Tprt : Repairs : General,3105,GO PLANT FLEET SERVICES LIMITED,A0091600,03/02/2022,OPS0323254,262.32,N,,N,N
Pendle Borough Council,Operational Services,Transport Related Expense,Tprt : Repairs : General,3105,GO PLANT FLEET SERVICES LIMITED,A0091600,24/02/2022,OPS0323804,356.31,N,,N,N
Pendle Borough Council,Operational Services,Transport Related Expense,Tprt : Repairs : General,3105,GO PLANT FLEET SERVICES LIMITED,A0091600,24/02/2022,OPS0323816,44.49,N,,N,N
Pendle Borough Council,Operational Services,Transport Related Expense,Tprt : Repairs : General,3105,GO PLANT FLEET SERVICES LIMITED,A0091600,24/02/2022,OPS0323815,464.69,N,,N,N
Pendle Borough Council,Operational Services,Transport Related Expense,Tprt : Repairs : General,3105,GO PLANT FLEET SERVICES LIMITED,A0091600,24/02/2022,OPS0323808,323.39,N,,N,N
Pendle Borough Council,Operational Services,Transport Related Expense,Tprt : Repairs : General,3105,GO PLANT FLEET SERVICES LIMITED,A0091600,24/02/2022,OPS0323809,338.11,N,,N,N
Pendle Borough Council,Operational Services,Transport Related Expense,Tprt : Repairs : General,3105,GO PLANT FLEET SERVICES LIMITED,A0091600,03/02/2022,OPS0323255,74.28,N,,N,N
Pendle Borough Council,Operational Services,Transport Related Expense,Tprt : Repairs : General,3105,GO PLANT FLEET SERVICES LIMITED,A0091600,24/02/2022,OPS0323793,50.18,N,,N,N
Pendle Borough Council,Operational Services,Transport Related Expense,Tprt : Repairs : General,3105,GO PLANT FLEET SERVICES LIMITED,A0091600,24/02/2022,OPS0323812,77.57,N,,N,N
Pendle Borough Council,Operational Services,Transport Related Expense,Tprt : Repairs : General,3105,GO PLANT FLEET SERVICES LIMITED,A0091600,03/02/2022,OPS0323252,206.78,N,,N,N
Pendle Borough Council,Operational Services,Transport Related Expense,Tprt : Repairs : General,3105,GO PLANT FLEET SERVICES LIMITED,A0091600,24/02/2022,OPS0323813,406.26,N,,N,N
Pendle Borough Council,Operational Services,Transport Related Expense,Tprt : Repairs : General,3105,GO PLANT FLEET SERVICES LIMITED,A0091600,03/02/2022,OPS0323250,74.28,N,,N,N
Pendle Borough Council,Operational Services,Transport Related Expense,Tprt : Repairs : General,3105,GO PLANT FLEET SERVICES LIMITED,A0091600,24/02/2022,OPS0323810,73.74,N,,N,N
Pendle Borough Council,Operational Services,Transport Related Expense,Tprt : Repairs : General,3105,GO PLANT FLEET SERVICES LIMITED,A0091600,24/02/2022,OPS0323811,200.99,N,,N,N
Pendle Borough Council,Operational Services,Transport Related Expense,Tprt : Repairs : General,3105,GO PLANT FLEET SERVICES LIMITED,A0091600,03/02/2022,OPS0323241,44.66,N,,N,N
Pendle Borough Council,Operational Services,Transport Related Expense,Tprt : Repairs : General,3105,GO PLANT FLEET SERVICES LIMITED,A0091600,03/02/2022,OPS0323234,44.66,N,,N,N
Pendle Borough Council,Operational Services,Transport Related Expense,Tprt : Repairs : General,3105,GO PLANT FLEET SERVICES LIMITED,A0091600,03/02/2022,OPS0323251,143.78,N,,N,N
Pendle Borough Council,Operational Services,Transport Related Expense,Tprt : Repairs : General,3105,GO PLANT FLEET SERVICES LIMITED,A0091600,03/02/2022,OPS0323249,281.56,N,,N,N
Pendle Borough Council,Operational Services,Transport Related Expense,Tprt : Repairs : General,3105,GO PLANT FLEET SERVICES LIMITED,A0091600,03/02/2022,OPS0323237,28.92,N,,N,N
Pendle Borough Council,Operational Services,Transport Related Expense,Tprt : Repairs : General,3105,GO PLANT FLEET SERVICES LIMITED,A0091600,03/02/2022,OPS0323248,203.85,N,,N,N
Pendle Borough Council,Operational Services,Transport Related Expense,Tprt : Repairs : General,3105,GO PLANT FLEET SERVICES LIMITED,A0091600,03/02/2022,OPS0323240,121.8,N,,N,N
Pendle Borough Council,Operational Services,Transport Related Expense,Tprt : Repairs : General,3105,GO PLANT FLEET SERVICES LIMITED,A0091600,24/02/2022,OPS0323826,203.5,N,,N,N
Pendle Borough Council,Operational Services,Transport Related Expense,Tprt : Repairs : General,3105,GO PLANT FLEET SERVICES LIMITED,A0091600,03/02/2022,OPS0323258,243.25,N,,N,N
Pendle Borough Council,Operational Services,Transport Related Expense,Tyres,3204,GO PLANT FLEET SERVICES LIMITED,A0091600,24/02/2022,OPS0323807,86.43,N,,N,N
Pendle Borough Council,Operational Services,Transport Related Expense,Tyres,3204,GO PLANT FLEET SERVICES LIMITED,A0091600,24/02/2022,OPS0323814,139.33,N,,N,N
Pendle Borough Council,Operational Services,Transport Related Expense,Tyres,3204,GO PLANT FLEET SERVICES LIMITED,A0091600,03/02/2022,OPS0323253,281.09,N,,N,N
Pendle Borough Council,Operational Services,Transport Related Expense,Tyres,3204,GO PLANT FLEET SERVICES LIMITED,A0091600,24/02/2022,OPS0323804,60.96,N,,N,N
Pendle Borough Council,Operational Services,Transport Related Expense,Tyres,3204,GO PLANT FLEET SERVICES LIMITED,A0091600,24/02/2022,OPS0323815,367.96,N,,N,N
Pendle Borough Council,Operational Services,Transport Related Expense,Tyres,3204,GO PLANT FLEET SERVICES LIMITED,A0091600,03/02/2022,OPS0323246,45.39,N,,N,N
Pendle Borough Council,Operational Services,Transport Related Expense,Tyres,3204,GO PLANT FLEET SERVICES LIMITED,A0091600,24/02/2022,OPS0323825,28.09,N,,N,N
Pendle Borough Council,Operational Services,Transport Related Expense,Tyres,3204,GO PLANT FLEET SERVICES LIMITED,A0091600,03/02/2022,OPS0323243,63.25,N,,N,N
Pendle Borough Council,Operational Services,Transport Related Expense,Tyres,3204,GO PLANT FLEET SERVICES LIMITED,A0091600,24/02/2022,OPS0323824,30.54,N,,N,N
Pendle Borough Council,Operational Services,Transport Related Expense,Tyres,3204,GO PLANT FLEET SERVICES LIMITED,A0091600,24/02/2022,OPS0323823,30.91,N,,N,N
Pendle Borough Council,Operational Services,Transport Related Expense,Tyres,3204,GO PLANT FLEET SERVICES LIMITED,A0091600,03/02/2022,OPS0323238,62.05,N,,N,N
Pendle Borough Council,Operational Services,Transport Related Expense,Tyres,3204,GO PLANT FLEET SERVICES LIMITED,A0091600,03/02/2022,OPS0323236,42.99,N,,N,N
Pendle Borough Council,Operational Services,Transport Related Expense,Tyres,3204,GO PLANT FLEET SERVICES LIMITED,A0091600,24/02/2022,OPS0323821,35.32,N,,N,N
Pendle Borough Council,Operational Services,Transport Related Expense,Tyres,3204,GO PLANT FLEET SERVICES LIMITED,A0091600,03/02/2022,OPS0323245,71.59,N,,N,N
Pendle Borough Council,Operational Services,Transport Related Expense,Tyres,3204,GO PLANT FLEET SERVICES LIMITED,A0091600,03/02/2022,OPS0323244,47.01,N,,N,N
Pendle Borough Council,Operational Services,Transport Related Expense,Tyres,3204,GO PLANT FLEET SERVICES LIMITED,A0091600,03/02/2022,OPS0323242,33.17,N,,N,N
Pendle Borough Council,Operational Services,Transport Related Expense,Tyres,3204,GO PLANT FLEET SERVICES LIMITED,A0091600,24/02/2022,OPS0323820,33.17,N,,N,N
Pendle Borough Council,Operational Services,Transport Related Expense,Tyres,3204,GO PLANT FLEET SERVICES LIMITED,A0091600,24/02/2022,OPS0323822,34.72,N,,N,N
Pendle Borough Council,Operational Services,Transport Related Expense,Tyres,3204,GO PLANT FLEET SERVICES LIMITED,A0091600,03/02/2022,OPS0323257,47.67,N,,N,N
Pendle Borough Council,Operational Services,Transport Related Expense,Tprt : Annual Hire Charge,3601,GO PLANT FLEET SERVICES LIMITED,A0091600,03/02/2022,OPS0323356,3540.62,N,,N,N
Pendle Borough Council,Operational Services,Transport Related Expense,Tprt : Annual Hire Charge,3601,GO PLANT FLEET SERVICES LIMITED,A0091600,24/02/2022,OPS0323842,3540.62,N,,N,N
Pendle Borough Council,Operational Services,Transport Related Expense,Tprt : Annual Hire Charge,3601,GO PLANT FLEET SERVICES LIMITED,A0091600,03/02/2022,OPS0323356,3540.62,N,,N,N
Pendle Borough Council,Operational Services,Transport Related Expense,Tprt : Annual Hire Charge,3601,GO PLANT FLEET SERVICES LIMITED,A0091600,24/02/2022,OPS0323842,3540.62,N,,N,N
Pendle Borough Council,Operational Services,Transport Related Expense,Tprt : Annual Hire Charge,3601,GO PLANT FLEET SERVICES LIMITED,A0091600,03/02/2022,OPS0323356,3540.62,N,,N,N
Pendle Borough Council,Operational Services,Transport Related Expense,Tprt : Annual Hire Charge,3601,GO PLANT FLEET SERVICES LIMITED,A0091600,24/02/2022,OPS0323842,3540.62,N,,N,N
Pendle Borough Council,Operational Services,Transport Related Expense,Tprt : Annual Hire Charge,3601,GO PLANT FLEET SERVICES LIMITED,A0091600,03/02/2022,OPS0323356,3540.62,N,,N,N
Pendle Borough Council,Operational Services,Transport Related Expense,Tprt : Annual Hire Charge,3601,GO PLANT FLEET SERVICES LIMITED,A0091600,24/02/2022,OPS0323842,3540.62,N,,N,N
Pendle Borough Council,Operational Services,Transport Related Expense,Tprt : Annual Hire Charge,3601,GO PLANT FLEET SERVICES LIMITED,A0091600,03/02/2022,OPS0323356,3540.62,N,,N,N
Pendle Borough Council,Operational Services,Transport Related Expense,Tprt : Annual Hire Charge,3601,GO PLANT FLEET SERVICES LIMITED,A0091600,24/02/2022,OPS0323842,3540.62,N,,N,N
Pendle Borough Council,Operational Services,Transport Related Expense,Tprt : Annual Hire Charge,3601,GO PLANT FLEET SERVICES LIMITED,A0091600,03/02/2022,OPS0323356,3344.64,N,,N,N
Pendle Borough Council,Operational Services,Transport Related Expense,Tprt : Annual Hire Charge,3601,GO PLANT FLEET SERVICES LIMITED,A0091600,24/02/2022,OPS0323842,3344.64,N,,N,N
Pendle Borough Council,Operational Services,Transport Related Expense,Tprt : Annual Hire Charge,3601,GO PLANT FLEET SERVICES LIMITED,A0091600,03/02/2022,OPS0323356,3540.62,N,,N,N
Pendle Borough Council,Operational Services,Transport Related Expense,Tprt : Annual Hire Charge,3601,GO PLANT FLEET SERVICES LIMITED,A0091600,24/02/2022,OPS0323842,3540.62,N,,N,N
Pendle Borough Council,Operational Services,Transport Related Expense,Tprt : Annual Hire Charge,3601,GO PLANT FLEET SERVICES LIMITED,A0091600,03/02/2022,OPS0323356,3540.62,N,,N,N
Pendle Borough Council,Operational Services,Transport Related Expense,Tprt : Annual Hire Charge,3601,GO PLANT FLEET SERVICES LIMITED,A0091600,24/02/2022,OPS0323842,3540.62,N,,N,N
Pendle Borough Council,Operational Services,Transport Related Expense,Tprt : Annual Hire Charge,3601,GO PLANT FLEET SERVICES LIMITED,A0091600,03/02/2022,OPS0323356,3549.74,N,,N,N
Pendle Borough Council,Operational Services,Transport Related Expense,Tprt : Annual Hire Charge,3601,GO PLANT FLEET SERVICES LIMITED,A0091600,24/02/2022,OPS0323842,3549.74,N,,N,N
Pendle Borough Council,Operational Services,Transport Related Expense,Tprt : Annual Hire Charge,3601,GO PLANT FLEET SERVICES LIMITED,A0091600,03/02/2022,OPS0323356,3549.74,N,,N,N
Pendle Borough Council,Operational Services,Transport Related Expense,Tprt : Annual Hire Charge,3601,GO PLANT FLEET SERVICES LIMITED,A0091600,24/02/2022,OPS0323842,3549.74,N,,N,N
Pendle Borough Council,Operational Services,Transport Related Expense,Tprt : Annual Hire Charge,3601,GO PLANT FLEET SERVICES LIMITED,A0091600,03/02/2022,OPS0323356,3549.74,N,,N,N
Pendle Borough Council,Operational Services,Transport Related Expense,Tprt : Annual Hire Charge,3601,GO PLANT FLEET SERVICES LIMITED,A0091600,24/02/2022,OPS0323842,3549.74,N,,N,N
Pendle Borough Council,Operational Services,Transport Related Expense,Tprt : Annual Hire Charge,3601,GO PLANT FLEET SERVICES LIMITED,A0091600,03/02/2022,OPS0323356,3497.07,N,,N,N
Pendle Borough Council,Operational Services,Transport Related Expense,Tprt : Annual Hire Charge,3601,GO PLANT FLEET SERVICES LIMITED,A0091600,24/02/2022,OPS0323842,3497.07,N,,N,N
Pendle Borough Council,Operational Services,Transport Related Expense,Tprt : Annual Hire Charge,3601,GO PLANT FLEET SERVICES LIMITED,A0091600,03/02/2022,OPS0323356,3393,N,,N,N
Pendle Borough Council,Operational Services,Transport Related Expense,Tprt : Annual Hire Charge,3601,GO PLANT FLEET SERVICES LIMITED,A0091600,24/02/2022,OPS0323842,3393,N,,N,N
Pendle Borough Council,Operational Services,Transport Related Expense,Tprt : Annual Hire Charge,3601,GO PLANT FLEET SERVICES LIMITED,A0091600,03/02/2022,OPS0323356,2654.17,N,,N,N
Pendle Borough Council,Operational Services,Transport Related Expense,Tprt : Annual Hire Charge,3601,GO PLANT FLEET SERVICES LIMITED,A0091600,24/02/2022,OPS0323842,2654.17,N,,N,N
Pendle Borough Council,Operational Services,Transport Related Expense,Tprt : Annual Hire Charge,3601,GO PLANT FLEET SERVICES LIMITED,A0091600,03/02/2022,OPS0323356,1981.53,N,,N,N
Pendle Borough Council,Operational Services,Transport Related Expense,Tprt : Annual Hire Charge,3601,GO PLANT FLEET SERVICES LIMITED,A0091600,24/02/2022,OPS0323842,1981.53,N,,N,N
Pendle Borough Council,Operational Services,Transport Related Expense,Tprt : Annual Hire Charge,3601,GO PLANT FLEET SERVICES LIMITED,A0091600,03/02/2022,OPS0323356,1981.53,N,,N,N
Pendle Borough Council,Operational Services,Transport Related Expense,Tprt : Annual Hire Charge,3601,GO PLANT FLEET SERVICES LIMITED,A0091600,24/02/2022,OPS0323842,1981.53,N,,N,N
Pendle Borough Council,Operational Services,Transport Related Expense,Tprt : Annual Hire Charge,3601,GO PLANT FLEET SERVICES LIMITED,A0091600,03/02/2022,OPS0323356,1981.53,N,,N,N
Pendle Borough Council,Operational Services,Transport Related Expense,Tprt : Annual Hire Charge,3601,GO PLANT FLEET SERVICES LIMITED,A0091600,24/02/2022,OPS0323842,1981.53,N,,N,N
Pendle Borough Council,Operational Services,Transport Related Expense,Tprt : Annual Hire Charge,3601,GO PLANT FLEET SERVICES LIMITED,A0091600,03/02/2022,OPS0323356,1981.53,N,,N,N
Pendle Borough Council,Operational Services,Transport Related Expense,Tprt : Annual Hire Charge,3601,GO PLANT FLEET SERVICES LIMITED,A0091600,24/02/2022,OPS0323842,1981.53,N,,N,N
Pendle Borough Council,Operational Services,Transport Related Expense,Tprt : Annual Hire Charge,3601,GO PLANT FLEET SERVICES LIMITED,A0091600,03/02/2022,OPS0323356,1981.53,N,,N,N
Pendle Borough Council,Operational Services,Transport Related Expense,Tprt : Annual Hire Charge,3601,GO PLANT FLEET SERVICES LIMITED,A0091600,24/02/2022,OPS0323842,1981.53,N,,N,N
Pendle Borough Council,Operational Services,Transport Related Expense,Tprt : Annual Hire Charge,3601,GO PLANT FLEET SERVICES LIMITED,A0091600,03/02/2022,OPS0323356,509.54,N,,N,N
Pendle Borough Council,Operational Services,Transport Related Expense,Tprt : Annual Hire Charge,3601,GO PLANT FLEET SERVICES LIMITED,A0091600,24/02/2022,OPS0323842,509.54,N,,N,N
Pendle Borough Council,Operational Services,Transport Related Expense,Tprt : Annual Hire Charge,3601,GO PLANT FLEET SERVICES LIMITED,A0091600,03/02/2022,OPS0323356,509.54,N,,N,N
Pendle Borough Council,Operational Services,Transport Related Expense,Tprt : Annual Hire Charge,3601,GO PLANT FLEET SERVICES LIMITED,A0091600,24/02/2022,OPS0323842,509.54,N,,N,N
Pendle Borough Council,Operational Services,Transport Related Expense,Tprt : Annual Hire Charge,3601,GO PLANT FLEET SERVICES LIMITED,A0091600,03/02/2022,OPS0323356,598.81,N,,N,N
Pendle Borough Council,Operational Services,Transport Related Expense,Tprt : Annual Hire Charge,3601,GO PLANT FLEET SERVICES LIMITED,A0091600,24/02/2022,OPS0323842,598.81,N,,N,N
Pendle Borough Council,Operational Services,Transport Related Expense,Tprt : Annual Hire Charge,3601,GO PLANT FLEET SERVICES LIMITED,A0091600,03/02/2022,OPS0323356,650,N,,N,N
Pendle Borough Council,Operational Services,Transport Related Expense,Tprt : Annual Hire Charge,3601,GO PLANT FLEET SERVICES LIMITED,A0091600,24/02/2022,OPS0323842,650,N,,N,N
Pendle Borough Council,Operational Services,Transport Related Expense,Tprt : Annual Hire Charge,3601,GO PLANT FLEET SERVICES LIMITED,A0091600,03/02/2022,OPS0323356,598.81,N,,N,N
Pendle Borough Council,Operational Services,Transport Related Expense,Tprt : Annual Hire Charge,3601,GO PLANT FLEET SERVICES LIMITED,A0091600,24/02/2022,OPS0323842,598.81,N,,N,N
Pendle Borough Council,Operational Services,Transport Related Expense,Tprt : Annual Hire Charge,3601,GO PLANT FLEET SERVICES LIMITED,A0091600,03/02/2022,OPS0323356,598.81,N,,N,N
Pendle Borough Council,Operational Services,Transport Related Expense,Tprt : Annual Hire Charge,3601,GO PLANT FLEET SERVICES LIMITED,A0091600,24/02/2022,OPS0323842,598.81,N,,N,N
Pendle Borough Council,Operational Services,Transport Related Expense,Tprt : Annual Hire Charge,3601,GO PLANT FLEET SERVICES LIMITED,A0091600,03/02/2022,OPS0323356,650,N,,N,N
Pendle Borough Council,Operational Services,Transport Related Expense,Tprt : Annual Hire Charge,3601,GO PLANT FLEET SERVICES LIMITED,A0091600,24/02/2022,OPS0323842,650,N,,N,N
Pendle Borough Council,Operational Services,Transport Related Expense,Tprt : Annual Hire Charge,3601,GO PLANT FLEET SERVICES LIMITED,A0091600,03/02/2022,OPS0323356,598.81,N,,N,N
Pendle Borough Council,Operational Services,Transport Related Expense,Tprt : Annual Hire Charge,3601,GO PLANT FLEET SERVICES LIMITED,A0091600,24/02/2022,OPS0323842,598.81,N,,N,N
Pendle Borough Council,Operational Services,Transport Related Expense,Tprt : Annual Hire Charge,3601,GO PLANT FLEET SERVICES LIMITED,A0091600,03/02/2022,OPS0323356,239.53,N,,N,N
Pendle Borough Council,Operational Services,Transport Related Expense,Tprt : Annual Hire Charge,3601,GO PLANT FLEET SERVICES LIMITED,A0091600,24/02/2022,OPS0323842,239.53,N,,N,N
Pendle Borough Council,Operational Services,Transport Related Expense,Tprt : Annual Hire Charge,3601,GO PLANT FLEET SERVICES LIMITED,A0091600,03/02/2022,OPS0323356,239.53,N,,N,N
Pendle Borough Council,Operational Services,Transport Related Expense,Tprt : Annual Hire Charge,3601,GO PLANT FLEET SERVICES LIMITED,A0091600,24/02/2022,OPS0323842,239.53,N,,N,N
Pendle Borough Council,Operational Services,Transport Related Expense,Tprt : Annual Hire Charge,3601,GO PLANT FLEET SERVICES LIMITED,A0091600,03/02/2022,OPS0323356,239.53,N,,N,N
Pendle Borough Council,Operational Services,Transport Related Expense,Tprt : Annual Hire Charge,3601,GO PLANT FLEET SERVICES LIMITED,A0091600,24/02/2022,OPS0323842,239.53,N,,N,N
Pendle Borough Council,Operational Services,Transport Related Expense,Tprt : Annual Hire Charge,3601,GO PLANT FLEET SERVICES LIMITED,A0091600,03/02/2022,OPS0323356,239.53,N,,N,N
Pendle Borough Council,Operational Services,Transport Related Expense,Tprt : Annual Hire Charge,3601,GO PLANT FLEET SERVICES LIMITED,A0091600,24/02/2022,OPS0323842,239.53,N,,N,N
Pendle Borough Council,Operational Services,Transport Related Expense,Tprt : Annual Hire Charge,3601,GO PLANT FLEET SERVICES LIMITED,A0091600,03/02/2022,OPS0323356,239.53,N,,N,N
Pendle Borough Council,Operational Services,Transport Related Expense,Tprt : Annual Hire Charge,3601,GO PLANT FLEET SERVICES LIMITED,A0091600,24/02/2022,OPS0323842,239.53,N,,N,N
Pendle Borough Council,Operational Services,Transport Related Expense,Tprt : Annual Hire Charge,3601,GO PLANT FLEET SERVICES LIMITED,A0091600,03/02/2022,OPS0323356,239.53,N,,N,N
Pendle Borough Council,Operational Services,Transport Related Expense,Tprt : Annual Hire Charge,3601,GO PLANT FLEET SERVICES LIMITED,A0091600,24/02/2022,OPS0323842,239.53,N,,N,N
Pendle Borough Council,Operational Services,Transport Related Expense,Tprt : Annual Hire Charge,3601,GO PLANT FLEET SERVICES LIMITED,A0091600,03/02/2022,OPS0323356,239.53,N,,N,N
Pendle Borough Council,Operational Services,Transport Related Expense,Tprt : Annual Hire Charge,3601,GO PLANT FLEET SERVICES LIMITED,A0091600,24/02/2022,OPS0323842,239.53,N,,N,N
Pendle Borough Council,Operational Services,Transport Related Expense,Tprt : Annual Hire Charge,3601,GO PLANT FLEET SERVICES LIMITED,A0091600,03/02/2022,OPS0323356,339.69,N,,N,N
Pendle Borough Council,Operational Services,Transport Related Expense,Tprt : Annual Hire Charge,3601,GO PLANT FLEET SERVICES LIMITED,A0091600,24/02/2022,OPS0323842,339.69,N,,N,N
Pendle Borough Council,Operational Services,Transport Related Expense,Tprt : Annual Hire Charge,3601,GO PLANT FLEET SERVICES LIMITED,A0091600,03/02/2022,OPS0323356,592.28,N,,N,N
Pendle Borough Council,Operational Services,Transport Related Expense,Tprt : Annual Hire Charge,3601,GO PLANT FLEET SERVICES LIMITED,A0091600,24/02/2022,OPS0323842,592.28,N,,N,N
Pendle Borough Council,Operational Services,Transport Related Expense,Tprt : Annual Hire Charge,3601,GO PLANT FLEET SERVICES LIMITED,A0091600,03/02/2022,OPS0323356,592.28,N,,N,N
Pendle Borough Council,Operational Services,Transport Related Expense,Tprt : Annual Hire Charge,3601,GO PLANT FLEET SERVICES LIMITED,A0091600,24/02/2022,OPS0323842,592.28,N,,N,N
Pendle Borough Council,Operational Services,Transport Related Expense,Tprt : Annual Hire Charge,3601,GO PLANT FLEET SERVICES LIMITED,A0091600,03/02/2022,OPS0323356,592.28,N,,N,N
Pendle Borough Council,Operational Services,Transport Related Expense,Tprt : Annual Hire Charge,3601,GO PLANT FLEET SERVICES LIMITED,A0091600,24/02/2022,OPS0323842,592.28,N,,N,N
Pendle Borough Council,Operational Services,Transport Related Expense,Tprt : Annual Hire Charge,3601,GO PLANT FLEET SERVICES LIMITED,A0091600,03/02/2022,OPS0323356,592.28,N,,N,N
Pendle Borough Council,Operational Services,Transport Related Expense,Tprt : Annual Hire Charge,3601,GO PLANT FLEET SERVICES LIMITED,A0091600,24/02/2022,OPS0323842,592.28,N,,N,N
Pendle Borough Council,Operational Services,Transport Related Expense,Tprt : Annual Hire Charge,3601,GO PLANT FLEET SERVICES LIMITED,A0091600,03/02/2022,OPS0323356,592.28,N,,N,N
Pendle Borough Council,Operational Services,Transport Related Expense,Tprt : Annual Hire Charge,3601,GO PLANT FLEET SERVICES LIMITED,A0091600,24/02/2022,OPS0323842,592.28,N,,N,N
Pendle Borough Council,Operational Services,Transport Related Expense,Tprt : Annual Hire Charge,3601,GO PLANT FLEET SERVICES LIMITED,A0091600,03/02/2022,OPS0323356,535.67,N,,N,N
Pendle Borough Council,Operational Services,Transport Related Expense,Tprt : Annual Hire Charge,3601,GO PLANT FLEET SERVICES LIMITED,A0091600,24/02/2022,OPS0323842,535.67,N,,N,N
Pendle Borough Council,Operational Services,Transport Related Expense,Tprt : Annual Hire Charge,3601,GO PLANT FLEET SERVICES LIMITED,A0091600,03/02/2022,OPS0323356,239.53,N,,N,N
Pendle Borough Council,Operational Services,Transport Related Expense,Tprt : Annual Hire Charge,3601,GO PLANT FLEET SERVICES LIMITED,A0091600,24/02/2022,OPS0323842,239.53,N,,N,N
Pendle Borough Council,Operational Services,Transport Related Expense,Tprt : Annual Hire Charge,3601,GO PLANT FLEET SERVICES LIMITED,A0091600,03/02/2022,OPS0323356,496.4,N,,N,N
Pendle Borough Council,Operational Services,Transport Related Expense,Tprt : Annual Hire Charge,3601,GO PLANT FLEET SERVICES LIMITED,A0091600,24/02/2022,OPS0323842,496.4,N,,N,N
Pendle Borough Council,Operational Services,Transport Related Expense,Tprt : Annual Hire Charge,3601,GO PLANT FLEET SERVICES LIMITED,A0091600,03/02/2022,OPS0323356,496.4,N,,N,N
Pendle Borough Council,Operational Services,Transport Related Expense,Tprt : Annual Hire Charge,3601,GO PLANT FLEET SERVICES LIMITED,A0091600,24/02/2022,OPS0323842,496.4,N,,N,N
Pendle Borough Council,Property Services,Supplies and Services,Performing Rights Fees,4406,PPL PRS LIMITED,A0091668,03/02/2022,EST0323332,1243.4,N,,N,N
Pendle Borough Council,Engineering & Special Projects,Premises Related Expense,Grounds : R & M : Day to Day : Routine,2101,A&G LANDSCAPES & GROUNDWORKS LIMITED,A0091675,03/02/2022,HED0323348,50,N,,N,N
Pendle Borough Council,Engineering & Special Projects,Premises Related Expense,Grounds : R & M : Day to Day : Routine,2101,A&G LANDSCAPES & GROUNDWORKS LIMITED,A0091675,03/02/2022,HED0323348,140,N,,N,N
Pendle Borough Council,Engineering & Special Projects,Capital Costs,Capital : Payments,CD14,A&G LANDSCAPES & GROUNDWORKS LIMITED,A0091675,10/02/2022,HED0323528,2500,N,,N,500
Pendle Borough Council,Engineering & Special Projects,Capital Costs,Capital : Payments,CD14,A&G LANDSCAPES & GROUNDWORKS LIMITED,A0091675,10/02/2022,HED0323528,6905,N,,N,N
Pendle Borough Council,Engineering & Special Projects,,Other Income : Non-VATable,9303,NAPTHENS LLP,A0091698,24/02/2022,HED0323794,10,N,,N,N
Pendle Borough Council,Engineering & Special Projects,Capital Costs,Capital: Design Fees,CD53,PEARL TOGETHER LIMITED,A0091725,24/02/2022,HED0323762,995,N,,N,N
Pendle Borough Council,Engineering & Special Projects,Agency Staff,Emp : Salaries & Wages,1020,THE OYSTER PARTNERSHIP LIMITED,A0091781,10/02/2022,HED0323415,161.68,N,,N,N
Pendle Borough Council,Engineering & Special Projects,Agency Staff,Emp : Salaries & Wages,1020,THE OYSTER PARTNERSHIP LIMITED,A0091781,10/02/2022,HED0323420,288,N,,N,N
Pendle Borough Council,Engineering & Special Projects,Agency Staff,Emp : Salaries & Wages,1020,THE OYSTER PARTNERSHIP LIMITED,A0091781,10/02/2022,HED0323419,481,N,,N,N
Pendle Borough Council,Engineering & Special Projects,Agency Staff,Emp : Salaries & Wages,1020,THE OYSTER PARTNERSHIP LIMITED,A0091781,03/02/2022,HED0323212,631.93,N,,N,N
Pendle Borough Council,Engineering & Special Projects,Agency Staff,Emp : Salaries & Wages,1020,THE OYSTER PARTNERSHIP LIMITED,A0091781,10/02/2022,HED0323421,760.02,N,,N,N
Pendle Borough Council,Engineering & Special Projects,Agency Staff,Emp : Salaries & Wages,1020,THE OYSTER PARTNERSHIP LIMITED,A0091781,17/02/2022,HED0323646,815.73,N,,N,N
Pendle Borough Council,Engineering & Special Projects,Agency Staff,Emp : Salaries & Wages,1020,THE OYSTER PARTNERSHIP LIMITED,A0091781,10/02/2022,HED0323409,849.78,N,,N,N
Pendle Borough Council,Engineering & Special Projects,Agency Staff,Emp : Salaries & Wages,1020,THE OYSTER PARTNERSHIP LIMITED,A0091781,10/02/2022,HED0323416,891.17,N,,N,N
Pendle Borough Council,Engineering & Special Projects,Agency Staff,Emp : Salaries & Wages,1020,THE OYSTER PARTNERSHIP LIMITED,A0091781,10/02/2022,HED0323422,977.38,N,,N,N
Pendle Borough Council,Engineering & Special Projects,Agency Staff,Emp : Salaries & Wages,1020,THE OYSTER PARTNERSHIP LIMITED,A0091781,10/02/2022,HED0323425,1044,N,,N,N
Pendle Borough Council,Engineering & Special Projects,Agency Staff,Emp : Salaries & Wages,1020,THE OYSTER PARTNERSHIP LIMITED,A0091781,10/02/2022,HED0323418,1134,N,,N,N
Pendle Borough Council,Engineering & Special Projects,Agency Staff,Emp : Salaries & Wages,1020,THE OYSTER PARTNERSHIP LIMITED,A0091781,10/02/2022,HED0323417,1152,N,,N,N
Pendle Borough Council,Engineering & Special Projects,Agency Staff,Emp : Salaries & Wages,1020,THE OYSTER PARTNERSHIP LIMITED,A0091781,03/02/2022,HED0323210,1268.1,N,,N,N
Pendle Borough Council,Engineering & Special Projects,Agency Staff,Emp : Salaries & Wages,1020,THE OYSTER PARTNERSHIP LIMITED,A0091781,17/02/2022,HED0323647,1281.6,N,,N,N
Pendle Borough Council,Engineering & Special Projects,Agency Staff,Emp : Salaries & Wages,1020,THE OYSTER PARTNERSHIP LIMITED,A0091781,24/02/2022,HED0323777,1282.5,N,,N,N
Pendle Borough Council,Engineering & Special Projects,Agency Staff,Emp : Salaries & Wages,1020,THE OYSTER PARTNERSHIP LIMITED,A0091781,10/02/2022,HED0323408,1352.7,N,,N,N
Pendle Borough Council,Engineering & Special Projects,Agency Staff,Emp : Salaries & Wages,1020,THE OYSTER PARTNERSHIP LIMITED,A0091781,24/02/2022,HED0323776,1472.75,N,,N,N
Pendle Borough Council,Engineering & Special Projects,Agency Staff,Emp : Salaries & Wages,1020,THE OYSTER PARTNERSHIP LIMITED,A0091781,10/02/2022,HED0323412,1483.5,N,,N,N
Pendle Borough Council,Engineering & Special Projects,Agency Staff,Emp : Salaries & Wages,1020,THE OYSTER PARTNERSHIP LIMITED,A0091781,17/02/2022,HED0323645,1515.75,N,,N,N
Pendle Borough Council,Engineering & Special Projects,Agency Staff,Emp : Salaries & Wages,1020,THE OYSTER PARTNERSHIP LIMITED,A0091781,03/02/2022,HED0323211,1537.25,N,,N,N
Pendle Borough Council,Engineering & Special Projects,Agency Staff,Emp : Salaries & Wages,1020,THE OYSTER PARTNERSHIP LIMITED,A0091781,17/02/2022,HED0323648,1558.85,N,,N,N
Pendle Borough Council,Engineering & Special Projects,Agency Staff,Emp : Salaries & Wages,1020,THE OYSTER PARTNERSHIP LIMITED,A0091781,10/02/2022,HED0323414,1559.36,N,,N,N
Pendle Borough Council,Engineering & Special Projects,Agency Staff,Emp : Salaries & Wages,1020,THE OYSTER PARTNERSHIP LIMITED,A0091781,24/02/2022,HED0323775,1578.61,N,,N,N
Pendle Borough Council,Engineering & Special Projects,Agency Staff,Emp : Salaries & Wages,1020,THE OYSTER PARTNERSHIP LIMITED,A0091781,03/02/2022,HED0323213,1604.49,N,,N,N
Pendle Borough Council,Engineering & Special Projects,Agency Staff,Emp : Salaries & Wages,1020,THE OYSTER PARTNERSHIP LIMITED,A0091781,10/02/2022,HED0323413,2646,N,,N,N
Pendle Borough Council,Engineering & Special Projects,Capital Costs,Capital : Payments,CD14,ROUGHLEE BOOTH PARISH COUNCIL,A0091815,17/02/2022,HED0323660,132,N,,N,N
Pendle Borough Council,Engineering & Special Projects,Capital Costs,Capital : Payments,CD14,ROUGHLEE BOOTH PARISH COUNCIL,A0091815,17/02/2022,HED0323661,800,N,,N,N
Pendle Borough Council,Engineering & Special Projects,Agency Staff,Emp : Salaries & Wages,1020,G2 RECRUITMENT SOLUTIONS,A0091827,03/02/2022,HED0323207,1295,N,,N,N
Pendle Borough Council,Engineering & Special Projects,Agency Staff,Emp : Salaries & Wages,1020,G2 RECRUITMENT SOLUTIONS,A0091827,10/02/2022,HED0323427,1295,N,,N,N
Pendle Borough Council,Engineering & Special Projects,Agency Staff,Emp : Salaries & Wages,1020,G2 RECRUITMENT SOLUTIONS,A0091827,17/02/2022,HED0323656,1295,N,,N,N
Pendle Borough Council,Engineering & Special Projects,Agency Staff,Emp : Salaries & Wages,1020,G2 RECRUITMENT SOLUTIONS,A0091827,24/02/2022,HED0323763,1295,N,,N,N
Pendle Borough Council,Engineering & Special Projects,Supplies and Services,Seminars etc All Costs,4601,INSTITUTE OF LICENSING (EVENTS) LIMITED,A0091882,03/02/2022,HED0323282,130,N,,N,N
Pendle Borough Council,Property Services,Premises Related Expense,Water & Sewerage,2501,BUSINESS STREAM,A0091916,17/02/2022,EST0323669,23.93,N,,N,N
Pendle Borough Council,Property Services,Premises Related Expense,Water & Sewerage,2501,BUSINESS STREAM,A0091916,17/02/2022,EST0323665,22.29,N,,N,N
Pendle Borough Council,Property Services,Premises Related Expense,Water & Sewerage,2501,BUSINESS STREAM,A0091916,24/02/2022,EST0323834,5.44,N,,N,N
Pendle Borough Council,Engineering & Special Projects,Capital Costs,Ren Grant : 1996 Act,CH22,DYNAMIC PLUMBING AND HEATING,A0091941,10/02/2022,HED0323477,5545,N,,N,N
Pendle Borough Council,Engineering & Special Projects,Capital Costs,Ren Grant : 1996 Act,CH22,DYNAMIC PLUMBING AND HEATING,A0091941,03/02/2022,HED0323208,9491,N,,N,N
Pendle Borough Council,Engineering & Special Projects,Capital Costs,Ren Grant : 1996 Act,CH22,DYNAMIC PLUMBING AND HEATING,A0091941,24/02/2022,HED0323773,10023,N,,N,N
Pendle Borough Council,Operational Services,Supplies and Services,EFM Materials,4004,SMI GROUP UK,A0091999,17/02/2022,OPS0323579,26.85,N,,N,N
Pendle Borough Council,Operational Services,Supplies and Services,EFM Materials,4004,SMI GROUP UK,A0091999,17/02/2022,OPS0323579,41.4,N,,N,N
Pendle Borough Council,Operational Services,Supplies and Services,EFM Materials,4004,SMI GROUP UK,A0091999,17/02/2022,OPS0323579,44.06,N,,N,N
Pendle Borough Council,Parks & Recreation Services,Supplies and Services,Protective Clothing,4201,SMI GROUP UK,A0091999,03/02/2022,PCO0323225,13.4,N,,N,N
Pendle Borough Council,Parks & Recreation Services,Supplies and Services,Protective Clothing,4201,SMI GROUP UK,A0091999,17/02/2022,PCO0323594,13.4,N,,N,N
Pendle Borough Council,Parks & Recreation Services,Supplies and Services,Protective Clothing,4201,SMI GROUP UK,A0091999,03/02/2022,PCO0323226,82.8,N,,N,N
Pendle Borough Council,Operational Services,Supplies and Services,Protective Clothing,4201,SMI GROUP UK,A0091999,24/02/2022,OPS0323782,225.36,N,,N,N
Pendle Borough Council,Operational Services,,Stock : Purchases,PJ01,SMI GROUP UK,A0091999,10/02/2022,OPS0323407,58,N,,N,N
Pendle Borough Council,Operational Services,,Stock : Purchases,PJ01,SMI GROUP UK,A0091999,17/02/2022,OPS0323574,105,N,,N,N
Pendle Borough Council,Operational Services,,Stock : Purchases,PJ01,SMI GROUP UK,A0091999,10/02/2022,OPS0323407,187.8,N,,N,N
Pendle Borough Council,Operational Services,,Stock : Purchases,PJ01,SMI GROUP UK,A0091999,17/02/2022,OPS0323574,213.75,N,,N,N
Pendle Borough Council,Property Services,,Personnel : Refundable Rental Deposits,B622,WRAPPEDUK LTD,A0092136,24/02/2022,EST0323833,9.31,N,,N,N
Pendle Borough Council,Human Resources,Indirect Employee Expenses,Emp : Medical Expenses,1236,FIONA SHARP PHYSIOTHERAPY,A0092384,10/02/2022,PER0323446,88,N,,N,N
Pendle Borough Council,Engineering & Special Projects,Capital Costs,Ren Grant : 1996 Act,CH22,SPAIN BUILDING & MAINTENANCE LTD,A0092410,24/02/2022,HED0323770,440,N,,N,N
Pendle Borough Council,Financial Services,Agency Costs,Internal Audit Outsourced Contract,5304,LIVERPOOL UNIVERSITY HOSPITALS NHS FOUNDATIONTRUST,A0092555,10/02/2022,AAS0323552,22425,N,,N,N
Pendle Borough Council,Engineering & Special Projects,Capital Costs,Capital : Payments,CD14,J S D ENGINEERING & CONSTRUCTION LTD,A0092644,17/02/2022,HED0323681,1039,N,,N,N
Pendle Borough Council,Engineering & Special Projects,Capital Costs,Ren Grant : 1996 Act,CH22,BLUEBELL NORTH WEST LIMITED,A0092759,10/02/2022,HED0323431,2490,N,,N,N
Pendle Borough Council,Engineering & Special Projects,Capital Costs,Ren Grant : 1996 Act,CH22,BLUEBELL NORTH WEST LIMITED,A0092759,10/02/2022,HED0323432,13134.6,N,,N,N
Pendle Borough Council,Engineering & Special Projects,Capital Costs,Ren Grant : 1996 Act,CH22,PENBURN CONSTRUCTION LTD,A0093321,24/02/2022,HED0323772,12734,N,,N,N
Pendle Borough Council,Operational Services,Supplies and Services,EFM Materials,4004,AMAZON PAYMENTS UK LIMITED,A0093876,17/02/2022,OPS0323572,65.7,N,,N,N
Pendle Borough Council,Operational Services,Supplies and Services,EFM Materials,4004,AMAZON PAYMENTS UK LIMITED,A0093876,17/02/2022,OPS0323571,75,N,,N,N
Pendle Borough Council,Engineering & Special Projects,Capital Costs,Capital : Payments,CD14,REDACT - PERSONAL DATA,A0093884,10/02/2022,HED0323524,2391.45,N,,N,N
Pendle Borough Council,Engineering & Special Projects,Capital Costs,Capital : Payments,CD14,APTUS UTILITIES LIMITED,A0094260,03/02/2022,HED0323351,117245.83,N,,N,N
Pendle Borough Council,Financial Services,Supplies and Services,Grant Funding,4737,PRESTIGE KARTING COLNE LTD,A0094314,15/02/2022,AAS0323597,4000,N,,N,N
Pendle Borough Council,Financial Services,Supplies and Services,Grant Funding,4737,STEPHEN ANDREWS,A0094316,17/02/2022,AAS0323704,2667,N,,N,N
Pendle Borough Council,Financial Services,Supplies and Services,Grant Funding,4737,BGT LEISURE LIMTED,A0094334,15/02/2022,AAS0323610,2667,N,,N,N
Pendle Borough Council,Financial Services,Supplies and Services,Grant Funding,4737,STEVEN PICKLES,A0094342,17/02/2022,AAS0323740,2667,N,,N,N
Pendle Borough Council,Financial Services,Supplies and Services,Grant Funding,4737,DEBORAH DEAN,A0094348,17/02/2022,AAS0323697,4000,N,,N,N
Pendle Borough Council,Financial Services,Supplies and Services,Grant Funding,4737,LAURA HUDSON,A0094352,17/02/2022,AAS0323703,2667,N,,N,N
Pendle Borough Council,Financial Services,Supplies and Services,Grant Funding,4737,DEBORAH SHARPE,A0094355,17/02/2022,AAS0323714,2667,N,,N,N
Pendle Borough Council,Financial Services,Supplies and Services,Grant Funding,4737,ANNE GARDNER,A0094363,17/02/2022,AAS0323707,2667,N,,N,N
Pendle Borough Council,Financial Services,Supplies and Services,Grant Funding,4737,AP INNS & TAVERNS LTD,A0094371,15/02/2022,AAS0323615,2667,N,,N,N
Pendle Borough Council,Financial Services,Supplies and Services,Grant Funding,4737,MATT ODDY T/A EARBY HOSTEL,A0094373,15/02/2022,AAS0323628,2667,N,,N,N
Pendle Borough Council,Financial Services,Supplies and Services,Grant Funding,4737,PAULA REED,A0094374,17/02/2022,AAS0323701,2667,N,,N,N
Pendle Borough Council,Financial Services,Supplies and Services,Grant Funding,4737,ARCADE CAFE LTD/NATALIE DOWD,A0094380,15/02/2022,AAS0323599,2667,N,,N,N
Pendle Borough Council,Financial Services,Supplies and Services,Grant Funding,4737,RACHEL TURNER,A0094383,17/02/2022,AAS0323748,2667,N,,N,N
Pendle Borough Council,Financial Services,Supplies and Services,Grant Funding,4737,RACHEL TURNER,A0094384,17/02/2022,AAS0323747,2667,N,,N,N
Pendle Borough Council,Financial Services,Supplies and Services,Grant Funding,4737,PENDLE LEISURE LTD,A0094395,17/02/2022,AAS0323718,4000,N,XR43029,N,N
Pendle Borough Council,Financial Services,Supplies and Services,Grant Funding,4737,FENCEGATE LTD /KEVIN BERKINS,A0094406,17/02/2022,AAS0323724,6000,N,,N,N
Pendle Borough Council,Financial Services,Supplies and Services,Grant Funding,4737,FENCEGATE LODGE LTD/KEVIN BERKINS,A0094409,17/02/2022,AAS0323709,6000,N,,N,N
Pendle Borough Council,Financial Services,Supplies and Services,Grant Funding,4737,JAMES WALKER,A0094410,17/02/2022,AAS0323750,2667,N,,N,N
Pendle Borough Council,Financial Services,Supplies and Services,Grant Funding,4737,ANNE BELL,A0094411,17/02/2022,AAS0323700,2667,N,,N,N
Pendle Borough Council,Financial Services,Supplies and Services,Grant Funding,4737,SAMANTHA WELLINGTON CLARK,A0094413,17/02/2022,AAS0323705,2667,N,,N,N
Pendle Borough Council,Financial Services,Supplies and Services,Grant Funding,4737,RACHEL & CHRISTOPHER PEARSON,A0094415,15/02/2022,AAS0323617,2667,N,,N,N
Pendle Borough Council,Financial Services,Supplies and Services,Grant Funding,4737,RED LION EARBY LTD,A0094420,15/02/2022,AAS0323626,2667,N,,N,N
Pendle Borough Council,Financial Services,Supplies and Services,Grant Funding,4737,CARTERS & MOTORMEN W M C,A0094439,17/02/2022,AAS0323710,2667,N,,N,N
Pendle Borough Council,Financial Services,Supplies and Services,Grant Funding,4737,CAROLE& HARRY JOHNSON,A0094442,15/02/2022,AAS0323636,2667,N,,N,N
Pendle Borough Council,Financial Services,Supplies and Services,Grant Funding,4737,CARANDINA LTD,A0094444,15/02/2022,AAS0323611,2667,N,,N,N
Pendle Borough Council,Financial Services,Supplies and Services,Grant Funding,4737,BARNOLDSWICK TOWN COUNCIL,A0094447,17/02/2022,AAS0323741,2667,N,,N,N
Pendle Borough Council,Financial Services,Supplies and Services,Grant Funding,4737,CARLOS RISTORANTE LTD,A0094453,15/02/2022,AAS0323600,4000,N,,N,N
Pendle Borough Council,Financial Services,Supplies and Services,Grant Funding,4737,ANDREW MURPHY,A0094454,24/02/2022,AAS0323860,2667,N,,N,N
Pendle Borough Council,Financial Services,Supplies and Services,Grant Funding,4737,D S COATES,A0094465,17/02/2022,AAS0323702,2667,N,,N,N
Pendle Borough Council,Financial Services,Supplies and Services,Grant Funding,4737,NELSON POULTRY CLUB,A0094468,17/02/2022,AAS0323722,2667,N,,N,N
Pendle Borough Council,Financial Services,Supplies and Services,Grant Funding,4737,JANE PURDY,A0094470,17/02/2022,AAS0323695,2667,N,,N,N
Pendle Borough Council,Financial Services,Supplies and Services,Grant Funding,4737,PETER LOFTUS,A0094471,15/02/2022,AAS0323603,2667,N,,N,N
Pendle Borough Council,Financial Services,Supplies and Services,Grant Funding,4737,NELSON OLD BRASS BAND CLUB LTD,A0094474,17/02/2022,AAS0323744,2667,N,,N,N
Pendle Borough Council,Financial Services,Supplies and Services,Grant Funding,4737,ALEC THOMPSON SECRETARY,A0094476,17/02/2022,AAS0323725,2667,N,,N,N
Pendle Borough Council,Financial Services,Supplies and Services,Grant Funding,4737,THOMAS CLIFTON AND CLAIR CLIFTON,A0094481,24/02/2022,AAS0323859,2667,N,,N,N
Pendle Borough Council,Engineering & Special Projects,Supplies and Services,Other Expenses,4705,EUROLOOS LIMITED,A0094490,10/02/2022,HED0323439,332.16,N,,N,N
Pendle Borough Council,Engineering & Special Projects,Supplies and Services,Other Expenses,4705,EUROLOOS LIMITED,A0094490,10/02/2022,HED0323440,332.16,N,,N,N
Pendle Borough Council,Engineering & Special Projects,Supplies and Services,Other Expenses,4705,EUROLOOS LIMITED,A0094490,10/02/2022,HED0323441,332.16,N,,N,N
Pendle Borough Council,Financial Services,Supplies and Services,Grant Funding,4737,COLNE OPEN DOOR CENTRE LTD,A0094496,17/02/2022,AAS0323716,2667,N,,N,N
Pendle Borough Council,Financial Services,Supplies and Services,Grant Funding,4737,COLDWELL ACTIVITY CENTRE,A0094503,17/02/2022,AAS0323720,2667,N,,N,N
Pendle Borough Council,Financial Services,Supplies and Services,Grant Funding,4737,CHILL N CHAT LTD,A0094505,15/02/2022,AAS0323637,2667,N,,N,N
Pendle Borough Council,Financial Services,Supplies and Services,Grant Funding,4737,MERRIE MEN INNS LTD,A0094516,17/02/2022,AAS0323745,4000,N,,N,N
Pendle Borough Council,Financial Services,Supplies and Services,Grant Funding,4737,NORTHERN WHISPER BREWING COMPANY LIMITED,A0094517,15/02/2022,AAS0323605,4000,N,,N,N
Pendle Borough Council,Financial Services,Supplies and Services,Grant Funding,4737,MICHAEL BANN,A0094521,17/02/2022,AAS0323698,4000,N,,N,N
Pendle Borough Council,Financial Services,Supplies and Services,Grant Funding,4737,SAMANTHA MASON,A0094524,17/02/2022,AAS0323717,2667,N,,N,N
Pendle Borough Council,Financial Services,Supplies and Services,Grant Funding,4737,INGLENOOK INNS & TAVERNS GK LTD,A0094528,15/02/2022,AAS0323608,6000,N,,N,N
Pendle Borough Council,Financial Services,Supplies and Services,Grant Funding,4737,WEST CRAVEN TOGETHER THE RAINHALL CENTRE,A0094535,04/02/2022,AAS0323393,10000,N,,N,N
Pendle Borough Council,Financial Services,Supplies and Services,Grant Funding,4737,WEST CRAVEN TOGETHER THE RAINHALL CENTRE,A0094535,15/02/2022,AAS0323616,4000,N,,N,N
Pendle Borough Council,Financial Services,Supplies and Services,Grant Funding,4737,KENNETH DUGGAN,A0094547,17/02/2022,AAS0323723,2667,N,,N,N
Pendle Borough Council,Financial Services,Supplies and Services,Grant Funding,4737,MR & MRS NS HOLROYD,A0094553,17/02/2022,AAS0323713,2667,N,,N,N
Pendle Borough Council,Financial Services,Supplies and Services,Grant Funding,4737,EMILY RENDLE,A0094575,17/02/2022,AAS0323738,4000,N,,N,N
Pendle Borough Council,Financial Services,Supplies and Services,Grant Funding,4737,BRIAN SUTCLIFFE,A0094577,15/02/2022,AAS0323632,2667,N,,N,N
Pendle Borough Council,Financial Services,Supplies and Services,Grant Funding,4737,THE CRAVEN HEIFER INN LTD,A0094583,15/02/2022,AAS0323619,6000,N,,N,N
Pendle Borough Council,Financial Services,Supplies and Services,Grant Funding,4737,CHRISTOPHER P JOYCE,A0094597,15/02/2022,AAS0323625,4000,N,,N,N
Pendle Borough Council,Financial Services,Supplies and Services,Grant Funding,4737,THE VENUE COLNE LIMITED,A0094611,15/02/2022,AAS0323630,4000,N,,N,N
Pendle Borough Council,Engineering & Special Projects,,Other Income : Non-VATable,9303,THE VENUE COLNE LIMITED,A0094611,24/02/2022,HED0323798,50,N,,N,N
Pendle Borough Council,Financial Services,Supplies and Services,Grant Funding,4737,MICHAELA WILSON,A0094644,15/02/2022,AAS0323602,2667,N,,N,N
Pendle Borough Council,Financial Services,Supplies and Services,Grant Funding,4737,EDWARD HEFFERNAN,A0094661,17/02/2022,AAS0323694,2667,N,,N,N
Pendle Borough Council,Financial Services,Supplies and Services,Grant Funding,4737,DANIEL THWAITES PLC,A0094667,17/02/2022,AAS0323739,4000,N,,N,N
Pendle Borough Council,Financial Services,Supplies and Services,Grant Funding,4737,A WADDINGTON,A0094668,17/02/2022,AAS0323712,2667,N,,N,N
Pendle Borough Council,Financial Services,Supplies and Services,Grant Funding,4737,MR N FISH,A0094669,24/02/2022,AAS0323699,2667,N,,N,N
Pendle Borough Council,Financial Services,Supplies and Services,Grant Funding,4737,OAKS HOTEL,A0094685,17/02/2022,AAS0323746,6000,N,,N,N
Pendle Borough Council,Financial Services,Supplies and Services,Grant Funding,4737,DEAN TORKINGTON,A0094701,17/02/2022,AAS0323736,2667,N,,N,N
Pendle Borough Council,Financial Services,Supplies and Services,Grant Funding,4737,JRME UK LTD,A0094712,24/02/2022,AAS0323861,6000,N,,N,N
Pendle Borough Council,Financial Services,Supplies and Services,Grant Funding,4737,JOSEPHINE WHITAKER,A0094716,15/02/2022,AAS0323624,2667,N,,N,N
Pendle Borough Council,Financial Services,Supplies and Services,Grant Funding,4737,ALLAN HALL,A0094755,15/02/2022,AAS0323641,2667,N,,N,N
Pendle Borough Council,Financial Services,Supplies and Services,Grant Funding,4737,JOHN G PATERSON,A0094756,15/02/2022,AAS0323633,2667,N,,N,N
Pendle Borough Council,Financial Services,Supplies and Services,Grant Funding,4737,BLIND TIGER INNS LTD,A0094760,15/02/2022,AAS0323621,2667,N,,N,N
Pendle Borough Council,Engineering & Special Projects,,Other Income : Non-VATable,9303,BLIND TIGER INNS LTD,A0094760,24/02/2022,HED0323795,180,N,,N,N
Pendle Borough Council,Financial Services,Supplies and Services,Grant Funding,4737,KSC AND CATHOLIC CLUB,A0094762,24/02/2022,AAS0323863,2667,N,,N,N
Pendle Borough Council,Financial Services,Supplies and Services,Grant Funding,4737,MR T CORRIGAN,A0094772,15/02/2022,AAS0323607,2667,N,,N,N
Pendle Borough Council,Financial Services,Supplies and Services,Grant Funding,4737,JDS PUBS INNS & TAVERNS LTD,A0094781,15/02/2022,AAS0323612,2667,N,,N,N
Pendle Borough Council,Financial Services,Supplies and Services,Grant Funding,4737,PETER BARTON,A0094786,15/02/2022,AAS0323618,2667,N,,N,N
Pendle Borough Council,Financial Services,Supplies and Services,Grant Funding,4737,COLNE LEGION,A0094804,17/02/2022,AAS0323721,2667,N,,N,N
Pendle Borough Council,Financial Services,Supplies and Services,Grant Funding,4737,TRUSTEES BARROWFORD W M CLUB,A0094806,17/02/2022,AAS0323749,2667,N,,N,N
Pendle Borough Council,Financial Services,Supplies and Services,Grant Funding,4737,MICHAEL IRVING,A0094813,17/02/2022,AAS0323743,2667,N,,N,N
Pendle Borough Council,Financial Services,Supplies and Services,Grant Funding,4737,MARIOS AND SONS RESTAURANT LTD,A0094851,17/02/2022,AAS0323734,2667,N,,N,N
Pendle Borough Council,Financial Services,Supplies and Services,Grant Funding,4737,LINDSEY BOTTOMLEY,A0094856,17/02/2022,AAS0323686,2667,N,,N,N
Pendle Borough Council,Financial Services,Supplies and Services,Grant Funding,4737,REBECCA ASHWORTH & HANNAH STOBBS,A0094878,17/02/2022,AAS0323696,2667,N,,N,N
Pendle Borough Council,Financial Services,Supplies and Services,Grant Funding,4737,FAR HOLDINGS,A0095003,15/02/2022,AAS0323631,4000,N,,N,N
Pendle Borough Council,Financial Services,Supplies and Services,Grant Funding,4737,AMBER TAVERNS LIMITED,A0095036,15/02/2022,AAS0323614,6000,N,,N,N
Pendle Borough Council,Financial Services,Supplies and Services,Grant Funding,4737,HAWTHORN LEISURE HONEY LIMITED,A0095051,17/02/2022,AAS0323742,4000,N,,N,N
Pendle Borough Council,Financial Services,Supplies and Services,Grant Funding,4737,HAWTHORN LEISURE LIMITED,A0095056,17/02/2022,AAS0323751,4000,N,,N,N
Pendle Borough Council,Financial Services,Supplies and Services,Grant Funding,4737,THE EMMOTT ARMS,A0095059,17/02/2022,AAS0323737,4000,N,,N,N
Pendle Borough Council,Financial Services,Supplies and Services,Grant Funding,4737,KHANITHA SINGKHU,A0095060,15/02/2022,AAS0323598,2667,N,,N,N
Pendle Borough Council,Financial Services,Supplies and Services,Grant Funding,4737,MATT ODDY T/A EARBY HOSTEL,A0095102,15/02/2022,AAS0323627,2667,N,,N,N
Pendle Borough Council,Financial Services,Supplies and Services,Grant Funding,4737,MOHAMMED A ZAMAN,A0095113,17/02/2022,AAS0323733,4000,N,,N,N
Pendle Borough Council,Financial Services,Supplies and Services,Grant Funding,4737,SOPHIE WAITING,A0095134,17/02/2022,AAS0323715,2667,N,,N,N
Pendle Borough Council,Financial Services,Supplies and Services,Grant Funding,4737,T A SHEEHAN,A0095137,17/02/2022,AAS0323688,2667,N,,N,N
Pendle Borough Council,Financial Services,Supplies and Services,Grant Funding,4737,SCOTT ANDERSON,A0095156,15/02/2022,AAS0323638,4000,N,,N,N
Pendle Borough Council,Financial Services,Supplies and Services,Grant Funding,4737,MRS TRACY JANE HOLMES,A0095183,17/02/2022,AAS0323687,2667,N,,N,N
Pendle Borough Council,Financial Services,Supplies and Services,Grant Funding,4737,PROCURIOM ENTERTAINMENT LTD,A0095193,17/02/2022,AAS0323735,4000,N,,N,N
Pendle Borough Council,Parks & Recreation Services,Premises Related Expense,Grounds : R & M : Day to Day : Routine,2101,JAMES CROPPER,A0095244,10/02/2022,PCO0323360,100,N,,N,N
Pendle Borough Council,Parks & Recreation Services,Capital Costs,Capital : Payments,CD14,JAMES CROPPER,A0095244,10/02/2022,PCO0323359,4200,N,,N,N
Pendle Borough Council,Financial Services,Supplies and Services,Grant Funding,4737,LUXURY LEISURE,A0095247,24/02/2022,AAS0323862,4000,N,,N,N
Pendle Borough Council,Financial Services,Supplies and Services,Grant Funding,4737,MAUREEN HARDACRE,A0095286,15/02/2022,AAS0323635,2667,N,,N,N
Pendle Borough Council,Financial Services,Supplies and Services,Grant Funding,4737,BANCROFT MILL ENGINE MUSEUM,A0095423,17/02/2022,AAS0323711,2667,N,,N,N
Pendle Borough Council,Financial Services,Supplies and Services,Grant Funding,4737,CRAVEN INNS LTD,A0095433,15/02/2022,AAS0323639,4000,N,,N,N
Pendle Borough Council,Financial Services,Supplies and Services,Grant Funding,4737,MOHAMMED ULLAH,A0095493,15/02/2022,AAS0323609,2667,N,,N,N
Pendle Borough Council,Financial Services,Supplies and Services,Grant Funding,4737,SHARON ELEY,A0095536,15/02/2022,AAS0323640,2667,N,,N,N
Pendle Borough Council,Parks & Recreation Services,Supplies and Services,Expenditure : Materials,0002,MERRITT & FRYERS LTD,A0095575,10/02/2022,PCO0323458,39.1,N,,N,N
Pendle Borough Council,Parks & Recreation Services,Premises Related Expense,Grounds : R & M : Day to Day : Routine,2101,MERRITT & FRYERS LTD,A0095575,10/02/2022,PCO0323457,48.11,N,,N,N
Pendle Borough Council,Engineering & Special Projects,Supplies and Services,Computer Charges,4509,INNOVYZE,A0095637,03/02/2022,HED0323343,2809,N,,N,N
Pendle Borough Council,Financial Services,Supplies and Services,Grant Funding,4737,JANET SHARP,A0095675,17/02/2022,AAS0323706,2667,N,,N,N
Pendle Borough Council,Financial Services,Supplies and Services,Grant Funding,4737,HARVEY WADE,A0095684,17/02/2022,AAS0323693,2667,N,,N,N
Pendle Borough Council,Financial Services,Supplies and Services,Grant Funding,4737,MARK JONES,A0095744,15/02/2022,AAS0323629,2667,N,,N,N
Pendle Borough Council,Financial Services,Supplies and Services,Grant Funding,4737,SIMON CRONSHAW,A0095746,17/02/2022,AAS0323692,2667,N,,N,N
Pendle Borough Council,Engineering & Special Projects,Capital Costs,Capital : Payments,CD14,THE SHAW TRUST LIMITED,A0095864,03/02/2022,HED0323283,3562,N,,N,N
Pendle Borough Council,Financial Services,Supplies and Services,Grant Funding,4737,PENDLE FOREST SCOUTS & GUIDES,A0096022,17/02/2022,AAS0323719,2667,N,,N,N
Pendle Borough Council,Financial Services,Supplies and Services,Grant Funding,4737,ATTIQUE KHAN,A0096193,15/02/2022,AAS0323634,2667,N,,N,N
Pendle Borough Council,Financial Services,Supplies and Services,Grant Funding,4737,ELIZABETH ANN BELL,A0096194,15/02/2022,AAS0323601,4000,N,,N,N
Pendle Borough Council,Human Resources,Supplies and Services,Seminars etc All Costs,4601,INSTEP UK LTD,A0096267,17/02/2022,PER0323568,15.38,N,,N,N
Pendle Borough Council,Financial Services,Supplies and Services,Grant Funding,4737,ASHIQ HUSSAIN,A0096300,24/02/2022,AAS0323858,4000,N,,N,N
Pendle Borough Council,Financial Services,Supplies and Services,Grant Funding,4737,JOANNE CUNLIFFE,A0096301,24/02/2022,AAS0323857,2667,N,,N,N
Pendle Borough Council,Financial Services,Supplies and Services,Grant Funding,4737,SPC 2021 LIMITED,A0096400,15/02/2022,AAS0323622,4000,N,,N,N
Pendle Borough Council,Financial Services,Supplies and Services,Grant Funding,4737,SPC 2021 LIMITED,A0096401,15/02/2022,AAS0323623,6000,N,,N,N
Pendle Borough Council,Operational Services,Supplies and Services,Miscellaneous : Other,4707,CALIBRATION & CONSULTANCY SERVICES (UK) LTD,A0096406,10/02/2022,OPS0323534,3037.49,N,,N,N
Pendle Borough Council,Operational Services,Supplies and Services,Miscellaneous : Other,4707,CALIBRATION & CONSULTANCY SERVICES (UK) LTD,A0096406,10/02/2022,OPS0323535,8482.65,N,,N,N
Pendle Borough Council,Engineering & Special Projects,Transfer Payments,Accommodation ,6103,REGENT GUEST HOUSE,A0096417,03/02/2022,HED0323275,60,N,,N,N
Pendle Borough Council,Engineering & Special Projects,Transfer Payments,Accommodation ,6103,REGENT GUEST HOUSE,A0096417,10/02/2022,HED0323549,300,N,,N,N
Pendle Borough Council,Engineering & Special Projects,Transfer Payments,Accommodation ,6103,REGENT GUEST HOUSE,A0096417,03/02/2022,HED0323274,420,N,,N,N
Pendle Borough Council,Engineering & Special Projects,Transfer Payments,Accommodation ,6103,REGENT GUEST HOUSE,A0096417,10/02/2022,HED0323550,420,N,,N,N
Pendle Borough Council,Property Services,Premises Related Expense,Gas,2202,E.ON NEXT ENERGY LIMITED,A0096428,10/02/2022,EST0323502,8.09,N,,N,N
Pendle Borough Council,Property Services,Premises Related Expense,Electricity,2203,E.ON NEXT ENERGY LIMITED,A0096428,10/02/2022,EST4006530,-78.83,N,,N,N
Pendle Borough Council,Property Services,Premises Related Expense,Electricity,2203,E.ON NEXT ENERGY LIMITED,A0096428,10/02/2022,EST0323504,2.24,N,,N,N
Pendle Borough Council,Property Services,Premises Related Expense,Electricity,2203,E.ON NEXT ENERGY LIMITED,A0096428,10/02/2022,EST0323496,12.04,N,,N,N
Pendle Borough Council,Property Services,Premises Related Expense,Electricity,2203,E.ON NEXT ENERGY LIMITED,A0096428,10/02/2022,EST4006534,-1494.17,N,,N,N
Pendle Borough Council,Property Services,Premises Related Expense,Electricity,2203,E.ON NEXT ENERGY LIMITED,A0096428,10/02/2022,EST4006531,-156.57,N,,N,N
Pendle Borough Council,Property Services,Premises Related Expense,Electricity,2203,E.ON NEXT ENERGY LIMITED,A0096428,10/02/2022,EST0323506,0.28,N,,N,N
Pendle Borough Council,Property Services,Premises Related Expense,Electricity,2203,E.ON NEXT ENERGY LIMITED,A0096428,10/02/2022,EST0323482,3.02,N,,N,N
Pendle Borough Council,Property Services,Premises Related Expense,Electricity,2203,E.ON NEXT ENERGY LIMITED,A0096428,10/02/2022,EST0323505,6.86,N,,N,N
Pendle Borough Council,Property Services,Premises Related Expense,Electricity,2203,E.ON NEXT ENERGY LIMITED,A0096428,10/02/2022,EST0323489,22.94,N,,N,N
Pendle Borough Council,Property Services,Premises Related Expense,Electricity,2203,E.ON NEXT ENERGY LIMITED,A0096428,10/02/2022,EST0323499,164.69,N,,N,N
Pendle Borough Council,Property Services,Premises Related Expense,Electricity,2203,E.ON NEXT ENERGY LIMITED,A0096428,10/02/2022,EST0323507,1494.17,N,,N,N
Pendle Borough Council,Property Services,Premises Related Expense,Electricity,2203,E.ON NEXT ENERGY LIMITED,A0096428,03/02/2022,EST4006526,-366.88,N,,N,N
Pendle Borough Council,Property Services,Premises Related Expense,Electricity,2203,E.ON NEXT ENERGY LIMITED,A0096428,10/02/2022,EST4006533,-33.54,N,,N,N
Pendle Borough Council,Property Services,Premises Related Expense,Electricity,2203,E.ON NEXT ENERGY LIMITED,A0096428,10/02/2022,EST4006532,-0.25,N,,N,N
Pendle Borough Council,Property Services,Premises Related Expense,Electricity,2203,E.ON NEXT ENERGY LIMITED,A0096428,10/02/2022,EST0323484,2.38,N,,N,N
Pendle Borough Council,Property Services,Premises Related Expense,Electricity,2203,E.ON NEXT ENERGY LIMITED,A0096428,10/02/2022,EST0323503,2.52,N,,N,N
Pendle Borough Council,Property Services,Premises Related Expense,Electricity,2203,E.ON NEXT ENERGY LIMITED,A0096428,10/02/2022,EST0323486,3.73,N,,N,N
Pendle Borough Council,Property Services,Premises Related Expense,Electricity,2203,E.ON NEXT ENERGY LIMITED,A0096428,10/02/2022,EST0323485,3.76,N,,N,N
Pendle Borough Council,Property Services,Premises Related Expense,Electricity,2203,E.ON NEXT ENERGY LIMITED,A0096428,10/02/2022,EST0323487,3.77,N,,N,N
Pendle Borough Council,Property Services,Premises Related Expense,Electricity,2203,E.ON NEXT ENERGY LIMITED,A0096428,10/02/2022,EST0323483,3.83,N,,N,N
Pendle Borough Council,Property Services,Premises Related Expense,Electricity,2203,E.ON NEXT ENERGY LIMITED,A0096428,10/02/2022,EST0323488,4.34,N,,N,N
Pendle Borough Council,Property Services,Premises Related Expense,Electricity,2203,E.ON NEXT ENERGY LIMITED,A0096428,10/02/2022,EST0323501,4.34,N,,N,N
Pendle Borough Council,Property Services,Premises Related Expense,Electricity,2203,E.ON NEXT ENERGY LIMITED,A0096428,10/02/2022,EST0323509,4.34,N,,N,N
Pendle Borough Council,Property Services,Premises Related Expense,Electricity,2203,E.ON NEXT ENERGY LIMITED,A0096428,10/02/2022,EST0323511,4.34,N,,N,N
Pendle Borough Council,Property Services,Premises Related Expense,Electricity,2203,E.ON NEXT ENERGY LIMITED,A0096428,10/02/2022,EST0323513,4.34,N,,N,N
Pendle Borough Council,Property Services,Premises Related Expense,Electricity,2203,E.ON NEXT ENERGY LIMITED,A0096428,10/02/2022,EST0323514,4.34,N,,N,N
Pendle Borough Council,Property Services,Premises Related Expense,Electricity,2203,E.ON NEXT ENERGY LIMITED,A0096428,10/02/2022,EST0323515,4.34,N,,N,N
Pendle Borough Council,Property Services,Premises Related Expense,Electricity,2203,E.ON NEXT ENERGY LIMITED,A0096428,10/02/2022,EST0323516,4.34,N,,N,N
Pendle Borough Council,Property Services,Premises Related Expense,Electricity,2203,E.ON NEXT ENERGY LIMITED,A0096428,10/02/2022,EST0323508,4.38,N,,N,N
Pendle Borough Council,Property Services,Premises Related Expense,Electricity,2203,E.ON NEXT ENERGY LIMITED,A0096428,10/02/2022,EST0323510,4.69,N,,N,N
Pendle Borough Council,Property Services,Premises Related Expense,Electricity,2203,E.ON NEXT ENERGY LIMITED,A0096428,03/02/2022,EST0323321,11.55,N,,N,N
Pendle Borough Council,Property Services,Premises Related Expense,Electricity,2203,E.ON NEXT ENERGY LIMITED,A0096428,10/02/2022,EST0323512,11.91,N,,N,N
Pendle Borough Council,Property Services,Premises Related Expense,Electricity,2203,E.ON NEXT ENERGY LIMITED,A0096428,10/02/2022,EST0323500,46.7,N,,N,N
Pendle Borough Council,Property Services,Premises Related Expense,Electricity,2203,E.ON NEXT ENERGY LIMITED,A0096428,03/02/2022,EST0323320,158.42,N,,N,N
Pendle Borough Council,Property Services,Premises Related Expense,Electricity,2203,E.ON NEXT ENERGY LIMITED,A0096428,03/02/2022,EST0323319,204.54,N,,N,N
Pendle Borough Council,Human Resources,Supplies and Services,EFM : Office and computer equipment,4002,REDACT - PERSONAL DATA,A0096447,10/02/2022,PER0323447,130,N,,N,N
Pendle Borough Council,Human Resources,Supplies and Services,Seminars etc All Costs,4601,REDACT - PERSONAL DATA,A0096447,10/02/2022,PER0323447,90.95,N,,N,N
Pendle Borough Council,Parks & Recreation Services,Premises Related Expense,Grounds : R & M : Day to Day : Routine,2101,ABC CLEANING SERVICES (NORTH WEST) LIMITED,A0096473,17/02/2022,PCO0323576,775,N,,N,N
Pendle Borough Council,Parks & Recreation Services,Premises Related Expense,Grounds : R & M : Day to Day : Routine,2101,ABC CLEANING SERVICES (NORTH WEST) LIMITED,A0096473,10/02/2022,PCO0323352,750,N,,N,N
Pendle Borough Council,Engineering & Special Projects,Capital Costs,Ren Grant : 1996 Act,CH22,TK ACCESS SOLUTIONS LIMITED,A0096509,24/02/2022,HED0323769,4385,N,,N,N
Pendle Borough Council,Engineering & Special Projects,Premises Related Expense,Grounds : R & M : Day to Day : Routine,2101,BETTS HYDRO LTD,A0096519,10/02/2022,HED0323523,675,N,,N,N
Pendle Borough Council,Property Services,Premises Related Expense,Gas,2202,YU ENERGY,A0096523,24/02/2022,EST4006541,-209.4,N,,N,N
Pendle Borough Council,Property Services,Premises Related Expense,Gas,2202,YU ENERGY,A0096523,24/02/2022,EST4006540,-131.95,N,,N,N
Pendle Borough Council,Property Services,Premises Related Expense,Gas,2202,YU ENERGY,A0096523,24/02/2022,EST0323838,16.75,N,,N,N
Pendle Borough Council,Property Services,Premises Related Expense,Gas,2202,YU ENERGY,A0096523,24/02/2022,EST0323838,125,N,,N,N
Pendle Borough Council,Property Services,Premises Related Expense,Gas,2202,YU ENERGY,A0096523,24/02/2022,EST0323838,425.78,N,,N,N
Pendle Borough Council,Engineering & Special Projects,Supplies and Services,Other Expenses,4705,SPORT ENGLAND,A0096532,24/02/2022,HED0323803,1500,N,,N,N
Pendle Borough Council,Human Resources,Supplies and Services,Seminars etc All Costs,4601,MHFA ENGLAND,A0096538,17/02/2022,PER0323566,10,N,,N,N
Pendle Borough Council,Engineering & Special Projects,Supplies and Services,Subsidised Training,4721,STREETGAMES UK LTD,A0096543,10/02/2022,HED0323480,3000,N,,N,N
Pendle Borough Council,Financial Services,Supplies and Services,Subscriptions & Donations,4706,NOMINET UK,A0096546,10/02/2022,AAS0323547,3063.77,N,,N,N
Pendle Borough Council,Property Services,Premises Related Expense,Electricity,2203,DRAX ENERGY SOLUTIONS LIMITED,A0096547,10/02/2022,EST0323492,18.23,N,,N,N
Pendle Borough Council,Property Services,Premises Related Expense,Electricity,2203,DRAX ENERGY SOLUTIONS LIMITED,A0096547,10/02/2022,EST0323493,508.92,N,,N,N
Pendle Borough Council,Property Services,Premises Related Expense,Electricity,2203,DRAX ENERGY SOLUTIONS LIMITED,A0096547,10/02/2022,EST0323494,765.15,N,,N,N
Pendle Borough Council,Property Services,Premises Related Expense,Electricity,2203,DRAX ENERGY SOLUTIONS LIMITED,A0096547,10/02/2022,EST0323495,821.26,N,,N,N
Pendle Borough Council,Financial Services,Supplies and Services,Grant Funding,4737,PHILIP HEYWORTH,A0096548,04/02/2022,AAS0323392,17250,N,,N,N
Pendle Borough Council,Engineering & Special Projects,Capital Costs,Capital : Salaries,CD13,LOCAL PARTNERSHIPS,A0096551,24/02/2022,HED0323849,5875,N,,N,N
Pendle Borough Council,Financial Services,Supplies and Services,Consultants Fees,4401,MBSP CONSULTANCY LTD,A0096552,10/02/2022,AAS0323554,600,N,,N,N
Pendle Borough Council,Financial Services,Capital Costs,Capital : Payments,CD14,MBSP CONSULTANCY LTD,A0096552,10/02/2022,AAS0323554,3600,N,,N,N
Pendle Borough Council,Planning & Building Control,Supplies and Services,Other Expenses,4705,Vii NETWORKS LIMITED,A0096553,10/02/2022,PBC0323551,10850,N,,N,N
Pendle Borough Council,Financial Services,Supplies and Services,Grant Funding,4737,GIDDY KIPPERS LTD,A0096556,17/02/2022,AAS0323726,4000,N,,N,N
Pendle Borough Council,Financial Services,Supplies and Services,Grant Funding,4737,SUNIL SETHI,A0096557,17/02/2022,AAS0323727,2667,N,,N,N
Pendle Borough Council,Financial Services,Supplies and Services,Grant Funding,4737,SUSAN LISLE HALL,A0096558,17/02/2022,AAS0323689,2667,N,,N,N
Pendle Borough Council,Financial Services,Supplies and Services,Grant Funding,4737,THE BARNOLDSWICK LEGION CLUB,A0096559,15/02/2022,AAS0323620,2667,N,,N,N
Pendle Borough Council,Financial Services,Supplies and Services,Grant Funding,4737,KIM DIANE VASEY,A0096560,17/02/2022,AAS0323690,2667,N,,N,N
Pendle Borough Council,Financial Services,Supplies and Services,Grant Funding,4737,MUSAFIR LTD T/A BALTI KING,A0096561,15/02/2022,AAS0323642,2667,N,,N,N
Pendle Borough Council,Financial Services,Supplies and Services,Grant Funding,4737,QUATTRO RISTORANTE LTD,A0096562,15/02/2022,AAS0323606,4000,N,,N,N
Pendle Borough Council,Financial Services,Supplies and Services,Grant Funding,4737,SAMS NOM ND LTD,A0096563,15/02/2022,AAS0323613,4000,N,,N,N
Pendle Borough Council,Financial Services,Supplies and Services,Grant Funding,4737,ASHBURN STOVES LTD,A0096564,15/02/2022,AAS0323604,4000,N,,N,N
Pendle Borough Council,Financial Services,Supplies and Services,Grant Funding,4737,STEPHEN COUPE,A0096565,17/02/2022,AAS0323728,2667,N,,N,N
Pendle Borough Council,Financial Services,Supplies and Services,Grant Funding,4737,LISA BERESFORD,A0096566,17/02/2022,AAS0323729,2667,N,,N,N
Pendle Borough Council,Financial Services,Supplies and Services,Grant Funding,4737,LISA BERESFORD,A0096567,17/02/2022,AAS0323730,2667,N,,N,N
Pendle Borough Council,Financial Services,Supplies and Services,Grant Funding,4737,KYLEY COOKSON,A0096568,17/02/2022,AAS0323691,2667,N,,N,N
Pendle Borough Council,Financial Services,Supplies and Services,Grant Funding,4737,CHAI GUYS DINER LTD,A0096569,17/02/2022,AAS0323731,2667,N,,N,N
Pendle Borough Council,Financial Services,Supplies and Services,Grant Funding,4737,VILLAGE INNS & TAVERNS THE BAY HORSE LTD,A0096570,17/02/2022,AAS0323732,4000,N,,N,N
Pendle Borough Council,Financial Services,Supplies and Services,Grant Funding,4737,THE TRUSTEES BARLEY VILLAGE HALL COMMITTEE,A0096571,17/02/2022,AAS0323708,2667,N,,N,N
Pendle Borough Council,Engineering & Special Projects,Premises Related Expense,Bldgs : R & M : Day To Day,2001,BM Complete Developments Ltd,A0096572,24/02/2022,HED0323845,314.3,N,,N,N
Pendle Borough Council,Engineering & Special Projects,,Other Income : Non-VATable,9303,WHITE BEAR INN,A0096574,24/02/2022,HED0323796,42,N,,N,N
Pendle Borough Council,Property Services,,Rents : Non-VATable,9304,REDACT - PERSONAL DATA,A0096575,24/02/2022,EST0323841,5,N,,N,N
Pendle Borough Council,Engineering & Special Projects,Supplies and Services,Other Expenses,4705,REDACT - PERSONAL DATA,A0096576,24/02/2022,HED0323760,550,N,,N,N
Pendle Borough Council,Financial Services,Supplies and Services,Grant Funding,4737,MRS JACKIE KNOWLES,A0096580,24/02/2022,AAS0323853,2667,N,,N,N
Pendle Borough Council,Financial Services,Supplies and Services,Grant Funding,4737,SAMM ANTILL,A0096581,24/02/2022,AAS0323854,2667,N,,N,N
Pendle Borough Council,Financial Services,Supplies and Services,Grant Funding,4737,PRESS NORTH LTD,A0096582,24/02/2022,AAS0323855,4000,N,,N,N
Pendle Borough Council,Financial Services,Supplies and Services,Grant Funding,4737,BFCITC FACILITIES ENTERPRISES LTD,A0096583,24/02/2022,AAS0323856,4000,N,,N,N
